{"text_format":"2","workbook":"xlsx","n_sheets":43,"sheets":["Portada","Indíce","Balance de Comprobación","Cambios Act. Netos Disponibles","Act. Netos Dispon. Beneficios","Flujo de Efectivo","Estado de Camb en el Patrimonio","Nota 1","Nota 2","Nota 3","Nota 4","Nota 5","Nota 6","Nota 7","Nota 8","Nota 9","Nota 10","Nota 11","Nota 12","Nota 13","Nota 14","Nota 15","Nota 16","Nota 17","Nota 18","Nota 19","Nota 20","Nota 21","Nota 22","Nota 23","Nota 24","Nota 25","Nota 26","Nota 27","Nota 28","Nota 29","Nota 30","Nota 31","Nota 32","Nota 33","Nota 34","Nota 35","Nota 36"],"not_rendered":{"charts":12,"images":2,"macros":0,"external_links":2,"defined_names":43,"comments":0,"pivot_tables":0},"unopened":[],"bounds":{"document_bytes":16777216,"sheet_cells":100000,"run_cost":"one","rows_first":2000,"rows_last":500,"rows_between":2000,"halvings":0,"cell_chars":16384,"cell_head_chars":4096},"cells_cut":0,"cells_raw":0,"read":"whole","date_system":"1900"}

{"sheet":"Portada","index":0,"n_rows":0,"n_cols":0,"rows_kept":0,"cut":false,"hidden":false,"merged":[]}

{"sheet":"Indíce","index":1,"n_rows":44,"n_cols":4,"rows_kept":44,"cut":false,"hidden":false,"merged":[]}
[]
[null,"Indíce"]
[]
[null,1,null,"Balance de Comprobación"]
[null,2,null,"Estado de Cambios en los Activos Netos Disponibles"]
[null,3,null,"Estado de Activos Netos Disponibles para Beneficios"]
[null,4,null,"Flujo de Efectivo"]
[null,5,null,"Estado de Cambios en el patrominio"]
[null,"Nota 1",null,"Ingresos Financieros por efectivo y equivalentes de efectivo"]
[null,"Nota 2",null,"Ingresos Financieros por inversiones en instrumentos financieros"]
[null,"Nota 3",null,"Ganancias por Diferencial Cambiario y unidades de desarrollo"]
[null,"Nota 4",null,"Ingresos Operativos"]
[null,"Nota 5",null,"Plan de Contribuciones"]
[null,"Nota 6",null,"Ajuste por  deterioro y por valuación de instrumentos"]
[null,"Nota 7",null,"Salida de recursos"]
[null,"Nota 8",null,"Pérdidas por Diferencial Cambiario y unidades de desarrollo"]
[null,"Nota 9",null,"Gasto por estimación de Deterioro"]
[null,"Nota 10",null,"Gastos Generales"]
[null,"Nota 11",null,"Cuentas Corrientes y de Ahorro"]
[null,"Nota 12",null,"Inversiones en Instrumentos Financieros"]
[null,"Nota 13",null,"Productos y dividendos por cobrar asociados a inversiones en instrumentos financieros"]
[null,"Nota 14",null,"Cuentas por cobrar "]
[null,"Nota 15",null,"Aportes por cobrar"]
[null,"Nota 16",null,"Intangibles"]
[null,"Nota 17",null,"Retenciones a Pensionados"]
[null,"Nota 18",null,"Obligaciones Por Liquidar Empleados y Exempleados"]
[null,"Nota 19",null,"Obligaciones Transitorias por Liquidar"]
[null,"Nota 20",null,"Cotización Seguro De Enfermedad y Maternidad"]
[null,"Nota 21",null,"Provisiones para pensiones en curso de pago"]
[null,"Nota 22",null,"Cuentas de orden deudoras y acreedoras"]
[null,"Nota 23",null,"Rendimientos acumulados"]
[null,"Nota 24",null,"Resultados del Periodo"]
[null,"Nota 25",null,"Ganancias o pérdidas por diferencias de cambio y unidades de desarrollo"]
[null,"Nota 26",null,"Deterioro de activos financieros"]
[null,"Nota 27",null,"Instrumentos financieros - Al valor Razonable con cambios en el otro resultado integral"]
[null,"Nota 28",null,"Instrumentos financieros - Al costo amortizado"]
[null,"Nota 29",null,"Productos y dividendos por cobrar"]
[null,"Nota 30",null,"Cuentas por cobrar"]
[null,"Nota 31",null,"Aportes por cobrar"]
[null,"Nota 32",null,"Cuentas por pagar"]
[null,"Nota 33",null,"Provisión para pensiones en curso de pago"]
[null,"Nota 34",null,"Otros pasivos"]
[null,"Nota 35",null,"Aportaciones recibidas - Reservas en formación"]
[null,"Nota 36",null,"Ajuste por valuación de instrumentos financieros al valor razonzable con cambios en el ORI"]

{"sheet":"Balance de Comprobación","index":2,"n_rows":61,"n_cols":9,"rows_kept":61,"cut":false,"hidden":false,"merged":[[53,3,53,5],[38,2,38,3],[1,2,1,7],[3,2,3,7],[5,2,5,7],[51,3,52,5]]}
[]
[null,null,"Fondo de Jubilaciones y Pensiones del Poder Judicial"]
[]
[null,null,"Balance de Comprobación"]
[]
[null,null,"Al 30 de Junio 2020 (Trimestre 2)"]
[null," "]
[]
[null,null,"ACTIVO"]
[null,null,"Cuentas Corrientes y De Ahorro ",null,null,10380753053.9]
[null,null,"Al valor razonable con cambios en otros resultados",null,null,389864432230.96002]
[null,null,"Al costo amortizado",null,null,198713117423.85001]
[null,null,"Productos y dividendos por cobrar asociados a inve",null,null,10064117203.77]
[null,null,"Cuentas por cobrar",null,null,760788524.38]
[null,null,"Aportes por cobrar a los trabajadores",null,null,4950151623.8900003]
[null,null,"Aportes por cobrar al Patrono",null,null,3137009929.0988002]
[null,null,"Aportes por cobrar al Estado",null,null,307553601.75999999]
[null,null,"Otros Aportes por cobrar",null,null,205282987.66999999]
[null,null,"Valor de adquisición (software)",null,null,7618670]
[null,null,"(Amortización acumulada de software adquirido)",null,null,-7618670]
[null,null,"GASTOS"]
[null,null,"Otros Gastos Financieros",null,null,5732328145.0900002]
[null,null,"Gastos por estimación del deterioro",null,null,115604513.06999999]
[null,null,"Gastos de administración",null,null,1787534264.8299999]
[null,null,"PASIVO"]
[null,null,"Retenciones a Pensionados",{"$nulls":4},1531784876.7]
[null,null,"Obligaciones por liquidar empleados y exempleados",{"$nulls":4},3845542.63]
[null,null,"Obligaciones transitorias por liquidar",{"$nulls":4},3870546518.8299999]
[null,null,"Provisiones",{"$nulls":4},590475695.26999998]
[null,null,"Provisión para pensiones en curso de pago",{"$nulls":4},598492641958.47998]
[null,null,"PATRIMONIO"]
[null,null,"Patrimonio",{"$nulls":4},4513898717]
[null,null,"INGRESOS"]
[null,null,"Ingresos financieros por efectivo y equivalentes de efectivo",{"$nulls":4},124001302.37]
[null,null,"Ingresos Financieros por inversiones en instrumentos",{"$nulls":4},10927819940.16]
[null,null,"Otros Ingresos Financieros",{"$nulls":4},5940954254.7600002]
[null,null,"Ingresos operativos",{"$nulls":4},22704696.07]
[]
[null,null,"Sumas Iguales",null,null,{"$f":"SUM(F10:F24)","v":626018673502.2688},null,{"$f":"SUM(H26:H37)","v":626018673502.27002},{"$f":"+F39-H39","v":-1.220703125E-3}]
[]
[]
[]
[]
[]
[null,null,"             Lic. Luis Guillermo Vásquez Ureña ",null,null,"             MBA. María Antonieta Herrera Charraun"]
[null,null,"               Jefe Subproceso Contable ",null,null,"        Jefa Proceso Presupuestario Contable "]
[]
[]
[]
[]
[]
[null,null,null,"MBA. Floribel Campos Solano"]
[]
[null,null,null,"Jefa a.i. Macroproceso Financiero Contable"]
[]
[null,null,"Realizado por:"]
[null,null,"Licda. Yesenia Flores Chacón"]
[null,null,"Coordinadora de Unidad 1 a.i."]
[]
[]
[null,null,"Observación: Enlace al Manual de Políticas Contables."]

{"sheet":"Cambios Act. Netos Disponibles","index":3,"n_rows":81,"n_cols":9,"rows_kept":81,"cut":false,"hidden":false,"merged":[[73,2,74,4],[75,2,75,4]]}
[null,"Fondo de Jubilaciones y Pensiones"]
[null,"Estado de Cambios en los Activos Netos Disponibles"]
[null,"Por el mes terminado al 30/06/2020"]
[null,"(En colones sin céntimos)"]
[]
[]
[null,null,"NOTAS ","Trimestre 2",null,null,"Trimestre 1"]
[]
[null,"SALDO INICIAL ",null,"31 DE MARZO 2020",26925473818.970009,"(1)","31 DE DICIEMBRE 2019",5970351614.6400003,"(2)"]
[]
[null,"INGRESOS",null,null,{"$f":"D13+D23","v":17015480193.360001},null,null,{"$f":"G13+G23","v":18352675706.649998}]
[]
[null,"INGRESOS FINANCIEROS",null,{"$f":"+D14+D16+D19","v":16992775497.290001},null,null,{"$f":"+G14+G16+G19","v":18339669054.939999}]
[null,"Ingresos Financieros por efectivo y equivalentes de efectivo",null,{"$f":"SUM(D15)","v":124001302.37},null,null,{"$f":"SUM(G15)","v":117111591.05}]
[null,"Productos por cobrar por intereses en cuentas corres","Nota 1",{"$f":"+'Nota 1'!G26","v":124001302.37},null,null,117111591.05]
[null,"Ingresos Financieros por inversiones en instrumentos financieros",null,{"$f":"SUM(D17:D18)","v":10927819940.16},null,null,{"$f":"SUM(G17:G18)","v":11133781815.01}]
[null,"Al valor razonable con cambios en otros resultado ","Nota 2",{"$f":"+'Nota 2'!I16","v":8644470980.7900009},null,null,8083707734.5]
[null,"Al costo amortizado","Nota 2",{"$f":"+'Nota 2'!I18","v":2283348959.3699999},null,null,3050074080.5100002]
[null,"Otros ingresos financieros",null,{"$f":"SUM(D20:D22)","v":5940954254.7600002},null,null,{"$f":"SUM(G20:G22)","v":7088775648.8800001}]
[null,"Efectivo y equivalentes de efectivo $","Nota 3",{"$f":"+'Nota 3'!E12","v":61449153.289999999},null,null,68225693.959999993]
[null,"Al valor razonable con cambios en otro resultado integral","Nota 3",{"$f":"+'Nota 3'!E18","v":5081906840.3100004},null,null,5746239525.1199999]
[null,"Al costo amortizado","Nota 3",{"$f":"+'Nota 3'!E20+'Nota 3'!E23","v":797598261.15999997},null,null,1274310429.8]
[null,"Ingresos Operativos","Nota 4",{"$f":"+'Nota 4'!E16","v":22704696.07},null,null,13006651.709999999]
[]
[null,"PLAN DE CONTRIBUCIONES","Nota 5",null,{"$f":"SUM(D28:D31)","v":22836190726.879997},null,null,{"$f":"SUM(G28:G31)","v":22897726426.429966}]
[]
[null,"RESERVAS EN FORMACION"]
[null,"De los trabajadores",null,{"$f":"+'Nota 5'!F14","v":9060879498.3799992},null,null,9050857894.8899841]
[null,"Del Patrono",null,{"$f":"+'Nota 5'!F15","v":9833645038.5400009},null,null,9999401548.1399841]
[null,"Del Estado",null,{"$f":"+'Nota 5'!F16","v":964607994.00999999},null,null,978901623.94000053]
[null,"De los Pensionados",null,{"$f":"+'Nota 5'!F17+'Nota 5'!F18","v":2977058195.9499998},null,null,2868565359.4599943]
[]
[null,"AJUSTES AL PATRIMONIO"]
[null,"Ajuste por  deterioro y por valuación de instrumentos ","Nota 6",null,{"$f":"+'Nota 6'!E16","v":-12672513307.360001},null,null,20679104303.939999]
[]
[]
[null,"RESULTADO DEL PERIODO",null,null,{"$f":"SUM(D38)","v":9380013270.3700008},null,null,{"$f":"+G38","v":10301785535.400002}]
[null,"Utilidad del Periodo",null,{"$f":"+'Nota 24'!D19","v":9380013270.3700008},null,null,{"$f":"+'Nota 24'!E19","v":10301785535.400002}]
[]
[null,"TOTAL ADICIONES",null,null,{"$f":"E11+E25+E34","v":27179157612.879997},null,null,{"$f":"H11+H25+H34","v":61929506437.019958}]
[]
[null,"SALIDA DE RECURSOS",null,null,{"$f":"D43","v":32575252521.639999},null,null,{"$f":"G43","v":32923494061.439964}]
[null,"Por Nuevos Pensionados","Nota 7",{"$f":"+'Nota 7'!E16","v":32575252521.639999},null,null,32923494061.439964]
[]
[null,"GASTOS",null,null,{"$f":"D47+D55+D57","v":7635466922.9899988},null,null,{"$f":"G47+G55+G57","v":8050890171.25}]
[]
[null,"GASTOS FINANCIEROS",null,{"$f":"+D48","v":5732328145.0899992},null,null,{"$f":"+G48","v":5949779621.25}]
[null,"Otros Gastos Financieros",null,{"$f":"+D49+D51","v":5732328145.0899992},null,null,{"$f":"+G49+G51","v":5949779621.25}]
[null,"Pérdida por diferencial cambiario y unidades de desarrollo ",null,{"$f":"SUM(D50)","v":7520550.7800000003},null,null,{"$f":"SUM(G50)","v":63519090.659999996}]
[null,"Efectivo y Equivalentes de Efectivo $","Nota 8",{"$f":"+'Nota 8'!E12","v":7520550.7800000003},null,null,63519090.659999996]
[null,"Inversiones en instrumentos financieros",null,{"$f":"+D52+D53","v":5724807594.3099995},null,null,{"$f":"+G52+G53","v":5886260530.5900002}]
[null,"Al Valor Razonable con cambios en otro resultado integral","Nota 8",{"$f":"+'Nota 8'!E18","v":4518190464.9200001},null,null,4973303077.8299999]
[null,"Al Costo Amortizado ","Nota 8",{"$f":"+'Nota 8'!E20+'Nota 8'!E23+'Nota 8'!E29","v":1206617129.3899999},null,null,912957452.75999999]
[]
[null,"Gastos por estimación del Deterioro","Nota 9",{"$f":"+'Nota 9'!E14+'Nota 9'!E20","v":115604513.07000002},null,null,{"$f":"+'Nota 9'!F14+'Nota 9'!F20","v":295261297.45999998}]
[]
[null,"GASTOS DE ADMINISTRACIÓN",null,{"$f":"+D58","v":1787534264.8300002},null,null,{"$f":"+G58","v":1805849252.54}]
[null,"Gastos Genrales","Nota 10",{"$f":"+'Nota 10'!F21","v":1787534264.8300002},null,null,1805849252.54]
[]
[null,"TOTAL DE DEDUCCIONES",null,null,{"$f":"E42+E45","v":40210719444.629997},null,null,{"$f":"H42+H45","v":40974384232.689964}]
[]
[null,"ACTIVOS NETOS DISPONIBLES PARA BENEFICIOS"]
[null,"FUTUROS AL FINAL DEL PERIODO (3)",null,null,{"$f":"E9+E40-E60","v":13893911987.220009},null,null,{"$f":"H9+H40-H60","v":26925473818.969994}]
[]
[]
[null,"Observaciones: "]
[null,"(1) Saldo inicial mensual: Corresponde al total de activos disponibles para beneficios futuros al final del Primer Trimestre 2020."]
[null,"(2) Saldo acumulado: Pertenece al total de activos disponibles de beneficios futuros al final del año anterior (Diciembre 2019)."]
[null,"(3) Activos Netos Disponibles para Beneficios Futuros al Final del Periodo: Corresponde a la suma del saldo inicial mas el total de adiciones, menos el total de deducciones."]
[]
[null,"             Lic. Luis Guillermo Vásquez Ureña ",null,null,"             MBA. María Antonieta Herrera Charraun"]
[null,"               Jefe Subproceso Contable ",null,null,"         Jefa Proceso Presupuestario Contable "]
[]
[null,null,"MBA. Floribel Campos Solano"]
[]
[null,null,"Jefa a.i. Macroproceso Financiero Contable"]
[]
[null,"Realizado por:"]
[null,"Licda. Yesenia Flores Chacón"]
[null,"Coordinadora de Unidad 1 a.i."]
[null,"Observación: Enlace al Manual de Políticas Contables."]

{"sheet":"Act. Netos Dispon. Beneficios","index":4,"n_rows":80,"n_cols":5,"rows_kept":80,"cut":false,"hidden":false,"merged":[[71,1,71,3],[72,1,72,3]]}
[]
[null,"Fondo de Jubilaciones y Pensiones del Poder Judicial"]
[null,"Estado de Activos Netos Disponibles para Beneficios"]
[null,"AL 30/06/2020"]
[null,"(En colones sin céntimos)"]
[null,null,"Notas","Trimestre 2","Trimestre 1"]
[null,"EFECTIVO Y EQUIVALENTES DE EFECTIVO"]
[null,"Cuentas Corrientes y de Ahorro","Nota 11",{"$f":"+'Nota 11'!D23","v":10380753053.9},6440898046.1700001]
[]
[null,"INVERSIONES EN INSTRUMENTOS FINANCIEROS"]
[]
[null,"Al Valor Razoanble con cambios en otro resultado integral","Nota 12",{"$f":"+'Nota 12'!G17","v":389864432230.96002},381081088835.73999]
[null,"Al Valor Razoanble con cambios en resultados","Nota 12",{"$f":"+'Nota 12'!G22","v":0},0]
[null,"Al Costo Amortizado","Nota 12",{"$f":"+'Nota 12'!G31","v":198713117423.85001},215289348305.63998]
[null,"Vencidos y Restringidos","Nota 12",0,0]
[null,"Productos y dividendos por cobrar asociados a inversiones en instrumentos financieros","Nota 13",{"$f":"+'Nota 13'!G41","v":10064117203.77},6188413141.5599995]
[]
[]
[null,"CUENTAS POR COBARA"]
[null,"Impuesto sobre la renta por cobrar","Nota 14",{"$f":"+'Nota 14'!D13","v":760788524.38},1030980871.17]
[]
[null,"APORTES POR COBRAR"]
[null,"Aportes Por Cobrar A Los Trabajadores","Nota 15",{"$f":"+'Nota 15'!J11","v":4950151623.8900003},4210631531.7399998]
[null,"Aportes Por Cobrar Al Patrono","Nota 15",{"$f":"+'Nota 15'!J15","v":3137009929.0988002},3920522876.0388002]
[null,"Aportes Por Cobrar Al Estado","Nota 15",{"$f":"+'Nota 15'!J18","v":307553601.75999999},228492269.04999998]
[null,"Otros Aportes Por Cobrar","Nota 15",{"$f":"+'Nota 15'!J21","v":205282987.67000002},207840434.57999998]
[]
[null,"OTROS ACTIVOS"]
[null,"Intangibles","Nota 16",{"$f":"+'Nota 16'!H8","v":0},0]
[]
[null,"ACTIVO TOTAL",null,{"$f":"SUM(D8:D29)","v":618383206579.27893},618598216311.68896]
[]
[null,"CUENTAS POR PAGAR"]
[null,"Retenciones A Pensionados","Nota 17",{"$f":"+'Nota 17'!E48","v":1531784876.7000008},950322115.19000006]
[null,"Obligaciones Por Liquidar Empleados y Exempleados","Nota 18",{"$f":"+'Nota 18'!C14","v":3845542.57},3722763.78]
[null,"Obligaciones Transitorias por Liquidar","Nota 19",{"$f":"+'Nota 19'!D26","v":3870546518.8299999},3638959116.6700001]
[]
[null,"PROVISIONES"]
[null,"Cotización Seguro De Enfermedad y Maternidad","Nota 20",{"$f":"+'Nota 20'!F12","v":590475695.26999998},598213810.89999998]
[]
[null,"PROVISIONES PARA PENSIONES EN CURSO DE PAGO","Nota 21",{"$f":"+'Nota 21'!J16","v":598492641958.47998},586481524685.96985]
[]
[null,"PASIVO TOTAL",null,{"$f":"SUM(D34:D41)","v":604489294591.84998},591672742492.50989]
[]
[null,"ACTIVOS NETOS DISPONIBLES PARA BENEFICIOS FUTUROS (1)",null,{"$f":"+'Cambios Act. Netos Disponibles'!E63","v":13893911987.220009},26925473818.970009]
[]
[null,"RESERVAS EN FORMACIÓN","Nota 5",{"$f":"SUM(D48:D51)","v":22836190726.879997},{"$f":"SUM(E48:E51)","v":22897726426.429966}]
[null,"De los trabajadores",null,{"$f":"+'Nota 5'!F14","v":9060879498.3799992},{"$f":"+'Nota 5'!G14","v":9050857894.8899841}]
[null,"Del patrono",null,{"$f":"+'Nota 5'!F15","v":9833645038.5400009},{"$f":"+'Nota 5'!G15","v":9999401548.1399841}]
[null,"Del Estado",null,{"$f":"+'Nota 5'!F16","v":964607994.00999999},{"$f":"+'Nota 5'!G16","v":978901623.94000053}]
[null,"De los pensionados",null,{"$f":"+'Nota 5'!F17+'Nota 5'!F18","v":2977058195.9499998},{"$f":"+'Nota 5'!G17+'Nota 5'!G18","v":2868565359.4599943}]
[]
[null,"RENDIMIENTOS ACUMULADOS","Nota 23",{"$f":"SUM(D54:D55)","v":0},{"$f":"SUM(E54:E55)","v":0}]
[null,"Rendimientos devengados",null,{"$f":"+'Nota 23'!D14","v":10072603464.24},{"$f":"+'Nota 23'!D21","v":10239466859.889999}]
[null,"(Traslado de recursos a la provisión para pensiones en curso de pago)",null,{"$f":"+'Nota 23'!D15","v":-10072603464.24},{"$f":"+'Nota 23'!D22","v":-10239466859.889999}]
[null,"AJUSTES AL PATRIMONIO","Nota 6"]
[null,"Ajuste por  deterioro y por valuación de instrumentos ",null,{"$f":"+'Nota 6'!E16","v":-12672513307.360001},{"$f":"+'Cambios Act. Netos Disponibles'!H34","v":20679104303.939999}]
[null,"RESULTADO DEL PERIODO","Nota 24"]
[null,"Utilidad del periodo",null,{"$f":"+'Nota 24'!D19","v":9380013270.3700008},{"$f":"+'Nota 24'!E19","v":10301785535.400002}]
[null,"CUENTAS DE ORDEN","Nota 22",{"$f":"+'Nota 22'!D12","v":331222636},331222636]
[null,"Observaciones:"]
[null,"(1) Activos Netos Disponibles para Beneficios Futuros al Final del Periodo: Corresponde al total de activo menos el total de pasivo."]
[]
[]
[]
[null,"             Lic. Luis Guillermo Vásquez Ureña ","             MBA. María Antonieta Herrera Charraun"]
[null,"            Jefe Subproceso Contable ","       Jefa Proceso Presupuestario Contable "]
[]
[]
[]
[]
[null,"            MBA. Floribel Campos Solano"]
[null,"                  Jefa a.i. Macroproceso Financiero Contable"]
[]
[]
[null,"Realizado por:"]
[null,"Licda. Yesenia Flores Chacón"]
[null,"Coordinadora de Unidad 1 a.i."]
[]
[null,"Observación: Enlace al Manual de Políticas Contables."]

{"sheet":"Flujo de Efectivo","index":5,"n_rows":77,"n_cols":5,"rows_kept":77,"cut":false,"hidden":false,"merged":[[70,1,70,3],[71,1,71,3],[60,1,60,4]]}
[null,"Fondo de Jubilaciones y Pensiones"]
[null,"Flujo de Efectivo"]
[null,"Por el mes terminado al 30/06/2020"]
[null,"(En colones sin céntimos)"]
[]
[null,null,"NOTA","Trimestre 2","Trimestre 1"]
[null,"Flujo de efectivo de las actividades de operación"]
[null,"Resultados del período","NOTA 24",9380013270.3700008,10301785535.400002]
[null,"Partidas aplicadas a resultados que no requieren uso de fondos"]
[null,"Aumento/(Disminución) por"]
[null,"Depreciaciones y amortizaciones",null,0,0]
[null,"Ganancias o pérdidas por diferencias de cambio y unidades de desarrollo","NOTA 25",-208626109.66999999,-1138996027.6300001]
[null,"Ganancias o pérdidas por venta activos no financieros",null,0,0]
[null,"Ingresos Financieros",null,0,0]
[null,"Estimaciones por Inversiones",null,0,0]
[null,"Estimaciones por cartera de crédito",null,0,0]
[null,"Estimaciones por otros activos",null,0,0]
[null,"Provisiones por prestaciones sociales",null,0,0]
[null,"Otras provisiones",null,0,0]
[null,"Deterioro de activos financieros","NOTA 26",115604513.06999999,295261297.45999998]
[null,"Deterioro de propiedades, mobiliario y equipo",null,0,0]
[null,"Deterioro de otros activos",null,0,0]
[null,"Otros cargos (abonos) a resultado que no significan movimientos de efectivo",null,0,0]
[null,"Gasto impuesto de renta",null,0,0]
[null,"Flujos de efectivo por actividades de operación",null,0,0]
[null,"Aumento/(Disminución) por",null,0,0]
[null,"Efectivo y equivalentes de efectivo",null,0,0]
[null,"Instrumentos financieros - Al valor Razonable con cambios en el otro resultado integral","NOTA 27",-21362835105.98,-359558249801.63]
[null,"Instrumentos financieros - Al valor Razonable con cambios en Resultados"]
[null,"Instrumentos financieros - Al costo amortizado","NOTA 28",16576230881.790001,-215289348305.64001]
[null,"Instrumentos financieros - Derivados",null,0,0]
[null,"Cartera de créditos",null,0,0]
[null,"Productos y dividendos por cobrar","NOTA 29",-13656538079.65,-25752696901.779999]
[null,"Cuentas por cobrar","NOTA 30",270192346.79000002,-1030980871.17]
[null,"Aportes por cobrar","NOTA 31",-32511031.010000002,-8567487111.4088001]
[null,"Bienes y valores adquiridos en recuperación de créditos",null,0,0]
[null,"Otros activos",null,0,0]
[null,"Cuentas por pagar","NOTA 32",813172942.46000004,4593003995.6999998]
[null,"Productos por pagar - Derivados",null,0,0]
[null,"Provisión para pensiones en curso de pago","NOTA 33",1938513808.2700005,580779474641.83899]
[null,"Otros pasivos","NOTA 34",-7738115.6299999999,598213810.89999998]
[null,"Impuesto sobre la renta",null,0,0]
[null,"Flujos  de efectivo por actividades de inversión",null,0,0]
[null,"Aumento/(Disminución) por",null,0,0]
[null,"Productos y dividendos cobrados","NOTA 29",9780834017.4400005,19564283760.220001]
[null,"Propiedades, planta y equipo",null,0,0]
[null,"Intangibles",null,0,0]
[null,"Otras actividades de inversión",null,0,0]
[null,"Efectivo neto proveniente de actividades de inversión",null,0,0]
[null,"Flujos de efectivo por actividades de financiación",null,0,0]
[null,"Aumento/(Disminución) por:",null,0,0]
[null,"Obligaciones Financieras",null,0,0]
[null,"Aportaciones recibidas - Reservas en formación","NOTA 35",333541669.48000002,1646634023.9100001]
[null,"Dividendos",null,0,0]
[null,"Otras actividades de financiación",null,0,0]
[null,"Efectivo neto proveniente de actividades de financiación",null,0,0]
[null,"Efectos de las ganancias o pérdidas de cambio en el efectivo y equivalentes al efectivo",null,0,0]
[null,"Incremento (Disminución) neto de efectivo y equivalentes de efectivo",null,0,0]
[null,"Efectivo y equivalentes de efectivo al principio del período",null,6440898046.1700001,0]
[null,"Efectivo y equivalentes de efectivo al final del período",null,{"$f":"SUM(D8:D59)","v":10380753053.900003},6440898046.1700001]
[]
[]
[]
[]
[null,"             Lic. Luis Guillermo Vásquez Ureña ","MBA. María Antonieta Herrera Charraun"]
[null,"            Jefe Subproceso Contable ","Jefa Proceso Presupuestario Contable "]
[]
[]
[]
[]
[null,"            MBA. Floribel Campos Solano"]
[null,"                  Jefa a.i. Macroproceso Financiero Contable"]
[]
[]
[null,"Realizado por:"]
[null,"Licda. Yesenia Flores Chacón"]
[null,"Coordinadora de Unidad 1 a.i."]

{"sheet":"Estado de Camb en el Patrimonio","index":6,"n_rows":51,"n_cols":12,"rows_kept":51,"cut":false,"hidden":false,"merged":[[39,1,39,8],[45,2,45,5]]}
[null,"Fondo de Jubilaciones y Pensiones"]
[null,"Estado de Cambios en el Patrimonio"]
[null,"Por el mes terminado al 30/06/2020"]
[null,"(En colones sin céntimos)"]
[null,"Descripción [1]","Notas","Reservas en formación","Rendimientos acumulados","Ajustes al Patrimonio - otros resultados integrales","Otras reservas","Resultados del periodo","TOTAL"]
[null,"Saldo al 1 de enero de 2020"]
[null,"Cambios en las políticas contables"]
[null,"Corrección de errores materiales"]
[null,"Resultado Periodo 1"]
[null,"Reservas legales y otras reservas estatutarias"]
[null,"Aportaciones recibidas (Contribución Solidaria)","NOTA 35",1646634023.9100001,{"$nulls":4},1646634023.9100001]
[null,"(Traslado o liquidación de recursos)","NOTA 23"]
[null,"Superavit por revaluación de activos"]
[null,"Ajuste por valuación de instrumentos financieros al valor razonzable con cambios en el ORI","NOTA 36",null,null,20679104303.939999,null,null,20679104303.939999]
[null,"Ajuste por valuación de instrumentos derivados"]
[null,"Reserva saldos deudores"]
[null,"Utilidad (Pérdida) del primer trimestre",{"$nulls":5},4599735491.2700005,4599735491.2700005]
[null,"Saldo al 31 de marzo de 2020",null,1646634023.9100001,null,20679104303.939999,null,4599735491.2700005,26925473819.119999]
[null,"Otros resultados integrales periodo 1","NOTA 23",null,4599735491.2700005,null,null,-4599735491.2700005]
[null,"Resultados Integrales Totales periodo 1"]
[null,"Saldo al 1 de junio del 2020",null,1646634023.9100001,4599735491.2700005,20679104303.939999,0,0,26925473819.119999]
[null,"Cambios en las políticas contables"]
[null,"Corrección de errores materiales"]
[null,"Saldo corregido periodo 2"]
[null,"Ganancia o pérdida no reconocida en resultados Periodo 2"]
[null,"Resultado Periodo 2 (1 de Junio 2020)",null,1646634023.9100001,4599735491.2700005,20679104303.939999,0,0,26925473819.119999]
[null,"Otros resultados integrales periodo 2"]
[null,"Resultados Integrales Totales periodo 2"]
[null,"Reservas legales y otras reservas estatutarias"]
[null,"Aportaciones recibidas (Contribución solidaria)","NOTA 35",333541669.48000002,{"$nulls":4},{"$f":"SUM(D30:H30)","v":333541669.48000002}]
[null,"(Traslado o liquidación de recursos)","NOTA 23",null,-4599735491.2700005,null,null,null,-4599735491.2700005]
[null,"Superavit por revaluación de activos",{"$nulls":6},0]
[null,"Ajuste por valuación de instrumentos financieros al valor razonzable con cambios en el ORI","NOTA 36",null,null,-12672513307.360001,null,null,{"$f":"SUM(D33:H33)","v":-12672513307.360001}]
[null,"Ajuste por valuación de instrumentos derivados",{"$nulls":6},{"$f":"SUM(D34:H34)","v":0}]
[null,"Reserva saldos deudores",{"$nulls":6},0]
[null,"Utilidad (Pérdida) del segundo trimestre",{"$nulls":5},3907145297.4000006,3907145297.4000006]
[null,"Saldo al 30 de junio de 2020",null,{"$f":"SUM(D26:D36)","v":1980175693.3900001},{"$f":"SUM(E26:E36)","v":0},8006590996.579998,0,3907145297.4000006,13893911987.369999]
[]
[{"$nulls":10},13893911987.220009,{"$f":"+I37-K39","v":0.14999008178710938}]
[null,"Nota: De acuerdo a lo indicado por la SUPEN el saldo de este estado debe coincidir con el dato del Estado de Cambios de activos netos disponibles."]
[]
[null,"             Lic. Luis Guillermo Vásquez Ureña ",null,null,null,"MBA. María Antonieta Herrera Charraun"]
[null,"            Jefe Subproceso Contable ",null,null,null,"Jefa Proceso Presupuestario Contable "]
[]
[]
[null,null,"            MBA. Floribel Campos Solano"]
[null,null,null,"                  Jefa a.i. Macroproceso Financiero Contable"]
[]
[null,"Realizado por:"]
[null,"Licda. Yesenia Flores Chacón"]
[null,"Coordinadora de Unidad 1 a.i."]

{"sheet":"Nota 1","index":7,"n_rows":45,"n_cols":11,"rows_kept":45,"cut":false,"hidden":false,"merged":[[4,2,4,6],[6,2,6,6],[6,11,6,17],[2,2,3,8]]}
[]
[null,null,"Nota 1:"]
[null,null,"Ingresos Financieros por efectivo y equivalentes de efectivo"]
[]
[null,null,"al 30 de Junio de 2020"]
[]
[null,null,"Como resultado de los saldos que se mantienen en las cuentas corrientes del Banco Nacional de Costa Rica, Banco de Costa Rica y  Banco Popular, al cierre del presente mes los intereses sobre saldos en cuentas corrientes son los siguientes:"]
[]
[]
[null,null,"Trimestre 2"]
[null,null,"Cuenta Contable",null,"Banco",null,"Intereses Ganados en el Mes ",null,"Tipo de Cambio",null,"Total $"]
[]
[null,null,"510.01.04.00.00.1.00.01",null,"Intereses Fondos Ctas Corrientes-Banco Nacional de CR 1234-0-¢",null,955.76]
[null,null,"510.01.04.00.00.1.00.02",null,"Intereses Fondos Ctas Corrientes-Banco de Costa Rica 229-32-9-¢",null,121153313.72]
[null,null,"510.01.04.00.00.1.00.03",null,"Intereses Fondos Ctas Corrientes-Banco Popular Cta 18-1019277-¢",null,18.5]
[null,null,"510.01.04.00.00.1.00.04",null,"Intereses Fondos Ctas Corrientes-Banco de Costa Rica Cta 174961-7-¢",null,0]
[null,null,"510.01.04.00.00.1.00.05",null,"Sobre equivalentes de efectivo ¢",null,0]
[null,null,"510.01.04.00.00.1.00.06",null,"Reportos ¢",null,0]
[null,null,"510.01.04.00.00.2.00.01",null,"Intereses Fondos Ctas Corrientes-Banco Nacional de CR Cta No 601277-7-$",null,0]
[null,null,"510.01.04.00.00.2.00.02",null,"Intereses Fondos Ctas Corrientes-Banco Popular Cta No 1914-1-$",null,0]
[null,null,"510.01.04.00.00.2.00.03",null,"Intereses Fondos Ctas Corrientes-Banco de Costa Rica 112247-9-$",null,2847014.39,null,583.16,null,{"$f":"+G21/I21","v":4882.0467624665616}]
[null,null,"510.01.04.00.00.2.00.04",null,"Sobre equivalentes de efectivo $",null,0]
[null,null,"510.01.04.00.00.2.00.05",null,"Reportos $",null,0]
[null,null,"510.01.04.00.00.4.00.01",null,"Sobre equivalentes de efectivo (UD)",null,0]
[null,null,"510.01.04.00.00.4.00.02",null,"Reportos (UD)",null,0]
[{"$nulls":4},"Total",null,{"$f":"SUM(G13:G21)","v":124001302.37},null,null,null,{"$f":"SUM(K13:K21)","v":4882.0467624665616}]
[]
[]
[null,null,"Trimestre 1"]
[null,null,"Cuenta Contable",null,"Banco",null,"Intereses Acumulados",null,"Tipo de Cambio",null,"Total $"]
[]
[null,null,"510.01.04.00.00.1.00.01",null,"Intereses Fondos Ctas Corrientes-Banco Nacional de CR 1234-0-¢",null,2768.38]
[null,null,"510.01.04.00.00.1.00.02",null,"Intereses Fondos Ctas Corrientes-Banco de Costa Rica 229-32-9-¢",null,116160563.92]
[null,null,"510.01.04.00.00.1.00.03",null,"Intereses Fondos Ctas Corrientes-Banco Popular Cta 18-1019277-¢",null,144.57]
[null,null,"510.01.04.00.00.1.00.04",null,"Intereses Fondos Ctas Corrientes-Banco de Costa Rica Cta 174961-7-¢",null,0]
[null,null,"510.01.04.00.00.1.00.05",null,"Sobre equivalentes de efectivo ¢",null,0]
[null,null,"510.01.04.00.00.1.00.06",null,"Reportos ¢",null,0]
[null,null,"510.01.04.00.00.2.00.01",null,"Intereses Fondos Ctas Corrientes-Banco Nacional de CR Cta No 601277-7-$",null,0]
[null,null,"510.01.04.00.00.2.00.02",null,"Intereses Fondos Ctas Corrientes-Banco Popular Cta No 1914-1-$",null,0]
[null,null,"510.01.04.00.00.2.00.03",null,"Intereses Fondos Ctas Corrientes-Banco de Costa Rica 112247-9-$",null,948114.18,null,578.74,null,784.44456923661744]
[null,null,"510.01.04.00.00.2.00.04",null,"Sobre equivalentes de efectivo $",null,0]
[null,null,"510.01.04.00.00.2.00.05",null,"Reportos $",null,0]
[null,null,"510.01.04.00.00.4.00.01",null,"Sobre equivalentes de efectivo (UD)",null,0]
[null,null,"510.01.04.00.00.4.00.02",null,"Reportos (UD)",null,0]
[{"$nulls":4},"Total",null,{"$f":"SUM(G32:G40)","v":117111591.05},null,null,null,{"$f":"SUM(K32:K40)","v":784.44456923661744}]

{"sheet":"Nota 2","index":8,"n_rows":28,"n_cols":9,"rows_kept":28,"cut":false,"hidden":false,"merged":[[2,1,3,7],[4,1,4,7],[8,1,8,7]]}
[]
[null,"Nota 2:"]
[null,"Ingresos Financieros por inversiones en instrumentos financieros"]
[]
[null,"al 30 de Junio de 2020"]
[]
[]
[]
[null,"De acuerdo con lo establecido por la SUPEN, en este grupo se registran las cuentas sobre intereses, dividendos y rendimientos sobre inversiones en instrumentos financieros, por efectivo y equivalentes de efectivo; tanto a nivel nacional y extranjero. "]
[]
[]
[null,"Trimestre 2"]
["Cuenta Contable","Ingresos Financieros por inversiones en instrumentos financieros",null,"COLONES",null,"DOLARES",null,"UDES","TOTAL"]
[]
[null,"Intereses, Dividendos y Rendimientos devengados"]
["510.02.01","Al valor razonable con cambios en otros resultado integral",null,7441564761.3000002,null,1202906219.49,null,0,{"$f":"SUM(D16:H16)","v":8644470980.7900009}]
["510.02.02","Al valor razonable con cambios en resultados",null,0,null,0,null,0,{"$f":"SUM(D17:H17)","v":0}]
["510.02.03","Al costo amortizado",null,1939513487.7,null,159500387.61000001,null,184335084.06,{"$f":"SUM(D18:H18)","v":2283348959.3699999}]
[null,"Total de Ingresos Financieros por inversiones en instrumentos financieros",null,{"$f":"SUM(D16:D18)","v":9381078249},null,{"$f":"SUM(F16:F18)","v":1362406607.0999999},null,{"$f":"SUM(H16:H18)","v":184335084.06},{"$f":"SUM(I16:I18)","v":10927819940.16}]
[]
[null,"Trimestre 1"]
["Cuenta Contable","Ingresos Financieros por inversiones en instrumentos financieros",null,"COLONES",null,"DOLARES",null,"UDES","TOTAL"]
[]
[null,"Intereses, Dividendos y Rendimientos devengados"]
["510.02.01","Al valor razonable con cambios en otros resultado integral",null,6821353803.6899996,null,1262353930.8099999,null,0,{"$f":"SUM(D25:H25)","v":8083707734.5}]
["510.02.02","Al valor razonable con cambios en resultados",null,0,null,0,null,0,{"$f":"SUM(D26:H26)","v":0}]
["510.02.03","Al costo amortizado",null,2703167652.48,null,163464035.11000001,null,183442392.91999999,{"$f":"SUM(D27:H27)","v":3050074080.5100002}]
[null,"Total de Ingresos Financieros por inversiones en instrumentos financieros",null,{"$f":"SUM(D25:D27)","v":9524521456.1700001},null,{"$f":"SUM(F25:F27)","v":1425817965.9200001},null,{"$f":"SUM(H25:H27)","v":183442392.91999999},{"$f":"SUM(I25:I27)","v":11133781815.01}]

{"sheet":"Nota 3","index":9,"n_rows":50,"n_cols":6,"rows_kept":50,"cut":false,"hidden":false,"merged":[[4,1,4,4],[7,1,7,4],[2,1,3,5],[35,0,35,3]]}
[]
[null,"Nota 3:"]
[null,"Ganancias por Diferencial Cambiario y unidades de desarrollo"]
[]
[null,{"$f":"+'Nota 2'!$B$5:$H$5","v":"al 30 de Junio de 2020"}]
[]
[]
[null,"Se registran otros ingresos referente a ganancia generada producto del diferencial cambiario en los  instrumentos de la cartera del Fondo de Jubilaciones."]
[]
[]
["Cuenta Contable","Cuenta",null,"Moneda","Trimestre 2","Trimestre 1"]
[null,"Efectivo y Equivalentes de Efectivo",null,null,{"$f":"SUM(E13:E15)","v":61449153.289999999},{"$f":"SUM(F13:F15)","v":68225693.959999993}]
["510.04.10.01.00.2.00.01","Cuentas corrientes",null,"Dólares",61449153.289999999,68225693.959999993]
["510.04.10.01.00.2.00.02","Sobre equivalentes de efectivo",null,"Dólares",0,0]
["510.04.10.01.00.2.00.03","Reportos",null,"Dólares",0,0]
[]
[null,"Inversiones en instrumentos financieros",null,null,{"$f":"SUM(E18:E23)","v":5879505101.4700003},{"$f":"SUM(F18:F23)","v":7020547108.7199993}]
["510.04.10.02.01.2.00","Al valor razonable con cambios en otro resultado integral $",null,"Dólares",5081906840.3100004,5746239525.1199999]
["510.04.10.02.02.2.00","Al valor razonable con cambios en resultados  $",null,"Dólares",0,0]
["510.04.10.02.03.2.00","Al costo amortizado $",null,"Dólares",677913516.39999998,881263552.02999997]
["510.04.10.02.01.4.00","Al valor razonable con cambios en otro resultado integral (UD)",null,"UDES",0,0]
["510.04.10.02.02.4.00","Al valor razonable con cambios en resultados (UD)",null,"UDES",0,0]
["510.04.10.02.03.4.00","Al costo amortizado   (UD)",null,"UDES",119684744.76000001,393044031.56999999]
[]
[null,"Cuentas, Productos y Dividendos por cobrar",null,null,{"$f":"SUM(E26:E33)","v":0},{"$f":"SUM(F26:F33)","v":2846.2}]
["510.04.10.03.00.2.00","Al valor razonable con cambios en otro resultado integral $",null,"Dólares",0,0]
["510.04.10.03.00.2.01","Al valor razonable con cambios en resultados $",null,"Dólares",0,0]
["510.04.10.03.00.2.02","Al costo amortizado $",null,"Dólares",0,0]
["510.04.10.03.00.2.03","Ganancia del Impuesto sobre la renta por cobrar $",null,"Dólares",0,2846.2]
["510.04.10.03.00.4.00","Al valor razonable con cambios en otros resultados integral (UD)",null,"UDES",0,0]
["510.04.10.03.00.4.01","Al valor razonable con cambios en resultados (UD)",null,"UDES",0,0]
["510.04.10.03.00.4.02","Al costo amortizado (UD)",null,"UDES",0,0]
["510.04.10.03.00.4.03","Ganancia del Impuesto sobre la renta por cobrar (UD)",null,"UDES",0,0]
{"$rows_empty":15}
["Interpretación Gráfica Trimestre 2"]
["Esta nota se complementa con la nota N° 8"]

{"sheet":"Nota 4","index":10,"n_rows":16,"n_cols":6,"rows_kept":16,"cut":false,"hidden":false,"merged":[[2,1,3,4],[4,1,4,4],[7,1,7,4]]}
[]
[null,"Nota 4:"]
[null,"Ingresos Operativos"]
[]
[null,{"$f":"+'Nota 2'!$B$5:$H$5","v":"al 30 de Junio de 2020"}]
[]
[]
[null,"Comprende las cuentas para el registro de los ingresos originados por operaciones no frecuentes, saldos a favor en céntimos de transferencias al Sistema Centralizado de Recaudación (SICERE), específico para el Fondo de Jubilaciones y Pensiones del Poder Judicial."]
[]
[]
["Cuenta Contable","Cuenta",null,"Moneda","Trimestre 2","Trimestre 1"]
[null,"Otros ingresos operativos"]
["513.02.04.00.00.1.00.01","Ingresos diversos ¢",null,"Colones",13113661.529999999,6697737.46]
["513.02.04.00.00.2.00.01","Ingresos diversos $",null,"Dólares",9588260.4000000004,6306956.8799999999]
["513.02.04.00.00.4.00.01","Ingresos diversos (UDS)",null,"UDES",2774.14,1957.37]
[null,"Total Otros ingresos operativos",null,null,{"$f":"SUM(E13:E15)","v":22704696.07},{"$f":"SUM(F13:F15)","v":13006651.709999999}]

{"sheet":"Nota 5","index":11,"n_rows":28,"n_cols":7,"rows_kept":28,"cut":false,"hidden":false,"merged":[[27,1,27,6],[26,1,26,6],[24,1,24,6],[22,1,22,6],[2,1,3,6],[4,1,4,6],[7,1,7,6],[9,1,9,6]]}
[]
[null,"Nota 5:"]
[null,"PLAN DE CONTRIBUCIONES"]
[]
[null,{"$f":"++'Nota 2'!$B$5:$H$5","v":"al 30 de Junio de 2020"}]
[]
[]
[null,"Comprende los aportes realizados  por el Poder Judicial en su calidad de Patrono y Estado, los cuales se aplican sobre los salarios devengados por los servidores judiciales."]
[]
[null,"Asimismo, está constituido por la contribución de los empleados, jubilados y pensionados judiciales, a los cuales en la actualidad se les deduce de su salario, jubilación y pensión. "]
[]
["Cuenta Contable","Aportes",null,"Porcentajes",null,"Trimestre 2","Trimestre 1"]
[]
["312.01.01.00.00.1.00","Trabajadores",null,0.13,null,9060879498.3799992,9050857894.8899841]
["312.02.01.00.00.1.00","Patrono",null,0.14360000000000001,null,9833645038.5400009,9999401548.1399841]
["312.03.01.00.00.1.00","Estado",null,1.41E-2,null,964607994.00999999,978901623.94000053]
["312.04.01.00.00.1.00.01","Jubilados y Pensionados ",null,0.13,null,2643516526.4699998,2654866134.5799942]
["312.04.01.00.00.1.00.02","Contribución Solidaria",null,"-",null,333541669.48000002,213699224.88000011]
[]
[null,"Total Aportes",null,null,null,{"$f":"SUM(F14:F18)","v":22836190726.879997},{"$f":"SUM(G14:G18)","v":22897726426.429966}]
[]
[null,"Notas:   "]
[null,"1-) Mediante la publicación de la Ley 9544, que reforma el Regimen de Jubilaciones y Pensiones del Poder Judicial y Acuerdo del Consejo Superior Sesión N°46-18 celebrada el 22/05/2018, art VI, se solicita realizar a partir de esta fecha el incremento al aporte obrero del 11% al 13%, así como el rebajo de la contribución especial, solidaria y redistributiva a las personas jubiladas y pensionadas, conforme el articulo 236 de esta Ley."]
[]
[null,"3-) En el Acuerdo del Consejo Superior, sesión N° 4-19 del 17 de enero de 2019 artículo XXXVI se acordó: \"Tomar nota de la comunicación de la Dirección de Gestión Humana, en oficio DGH-004-2019 del 10 de enero de 2019, referente a el cambio realizado en el parámetro del aporte estatal al Fondo de Jubilaciones y Pensiones de un 0.58% a  1.24%, fundamentado en los recursos asignados  por el Ministerio de Hacienda en la subpartida 60404, según lo establecido en la Ley de Presupuesto Ordinario y Extraordinario de la República para el Ejercicio Económico del 2019.\""]
[]
[null,"4-) En el aporte de trabajadores incluye el rubro de Reconocimiento de tiempo servido."]
[null,"5-) Según la directriz DGPN-SD-0242-2019 del 12 de abril de 2019, el porcentaje del aporte estatal cambia a 1.41% a partir de enero de 2020."]

{"sheet":"Nota 6","index":12,"n_rows":24,"n_cols":5,"rows_kept":24,"cut":false,"hidden":false,"merged":[[2,1,3,3],[4,1,4,3],[7,1,7,4]]}
[]
[null,"Nota 6:"]
[null,"Ajuste por  deterioro y por valuación de instrumentos"]
[]
[null,{"$f":"+'Nota 5'!B5:G5","v":"al 30 de Junio de 2020"}]
[]
[]
[null,"Se registran los ajustes al patrimonio que representan correcciones en su valor, como, valuación de instrumentos financieros y de derivados, según las reglas de valuación establecidas para las cuentas de activo."]
[]
["Trimestral 2"]
["Cuenta Contable","Cuenta ","Colón ","Dólar","Trimestre 2"]
[]
["314.02.01.00.00","Ganancias no realizadas por valuación de instr.",-11001272560.85,173504160.88999999,{"$f":"SUM(C13:D13)","v":-10827768399.960001}]
["314.02.02.00.00","(Pérdidas no realizadas por valuación de instr.",-220902796.56999999,-1590638093.45,{"$f":"SUM(C14:D14)","v":-1811540890.02}]
["314.02.03.00.00","Ajuste por deterioro de instrumentos financieros",62535846.880000003,-95739864.260000005,-33204017.380000003]
[null,"TOTAL",null,null,{"$f":"SUM(E13:E15)","v":-12672513307.360001}]
[]
["Trimestral 1"]
["Cuenta Contable","Cuenta ","Colón ","Dólar","Trimestre 1"]
[]
["314.02.01.00.00","Ganancias no realizadas por valuación de instr.",24088730944.709999,651627853.79999995,{"$f":"SUM(C21:D21)","v":24740358798.509998}]
["314.02.02.00.00","(Pérdidas no realizadas por valuación de instr.",-4378616.8600000003,-4352137175.1700001,{"$f":"SUM(C22:D22)","v":-4356515792.0299997}]
["314.02.03.00.00","Ajuste por deterioro de instrumentos financieros",162762738.59999999,132498558.86,295261297.45999998]
[null,"TOTAL",null,null,{"$f":"SUM(E21:E23)","v":20679104303.939999}]

{"sheet":"Nota 7","index":13,"n_rows":16,"n_cols":6,"rows_kept":16,"cut":false,"hidden":false,"merged":[[18,1,18,4],[7,1,7,6],[2,1,3,6],[4,1,4,6]]}
[]
[null,"Nota 7:"]
[null,"SALIDA DE RECURSOS"]
[]
[null,{"$f":"+'Nota 5'!B5:G5","v":"al 30 de Junio de 2020"}]
[]
[]
[null,"Corresponde al traslado de todos los recursos de la cuenta patrimonial “Reserva en Formación” a la cuenta Provisión para Pensiones en Curso de Pago”, por ende todos los recursos generados de los aportes, así como los rendimientos obtenidos por las inversiones se continúan registrando en la Provisión Para Pensiones en Curso de Pago."]
[]
[]
[null,null,null,"Cuenta","Trimestre 2","Trimestre 1"]
[]
[null,null,null,"Aportes ",22502649057.399998,22684027201.549965]
[null,null,null,"Rendimientos ",10072603464.24,10239466859.889999]
[]
[null,null,null,"TOTAL",{"$f":"SUM(E13:E14)","v":32575252521.639999},{"$f":"SUM(F13:F14)","v":32923494061.439964}]

{"sheet":"Nota 8","index":14,"n_rows":46,"n_cols":6,"rows_kept":46,"cut":false,"hidden":false,"merged":[[4,1,4,5],[7,1,7,4],[2,1,3,4],[35,0,35,3]]}
[]
[null,"Nota 8:"]
[null,"Pérdidas por Diferencial Cambiario y unidades de desarrollo"]
[]
[null,{"$f":"+'Nota 5'!B5:G5","v":"al 30 de Junio de 2020"}]
[]
[]
[null,"Se registran otros ingresos referente a pérdidas generada producto del diferencial cambiario en los  instrumentos de la cartera del Fondo de Jubilaciones."]
[]
[]
["Cuenta Contable","Cuenta",null,"Moneda","Trimestre 2","Trimestre 1"]
[null,"Efectivo y Equivalentes de Efectivo",null,null,{"$f":"SUM(E13:E15)","v":7520550.7800000003},{"$f":"SUM(F13:F15)","v":63519090.659999996}]
["410.04.10.01.00.2.00.01","Cuentas corrientes",null,"Dólares",7520550.7800000003,63519090.659999996]
["410.04.10.01.00.2.00.02","Sobre equivalentes de efectivo",null,"Dólares",0,0]
["410.04.10.01.00.2.00.03","Reportos",null,"Dólares",0,0]
[]
[null,"Inversiones en instrumentos financieros",null,null,{"$f":"SUM(E18:E23)","v":5724807525.4499998},{"$f":"SUM(F18:F23)","v":5886238258.5799999}]
["410.04.10.02.01.2.00","Al valor razonable con cambios en otro resultado integral $",null,"Dólares",4518190464.9200001,4973303077.8299999]
["410.04.10.02.02.2.00","Al valor razonable con cambios en resultados  $",null,"Dólares",0,0]
["410.04.10.02.03.2.00","Al costo amortizado $",null,"Dólares",607826906.98000002,776381391.50999999]
["410.04.10.02.01.4.00","Al valor razonable con cambios en otro resultado integral (UD)",null,"UDES",0,0]
["410.04.10.02.02.4.00","Al valor razonable con cambios en resultados (UD)",null,"UDES",0,0]
["410.04.10.02.03.4.00","Al costo amortizado   (UD)",null,"UDES",598790153.54999995,136553789.24000001]
[]
[null,"Cuentas, Productos y Dividendos por cobrar",null,null,{"$f":"SUM(E26:E33)","v":68.86},{"$f":"SUM(F26:F33)","v":22272.01}]
["410.04.10.03.00.2.00","Al valor razonable con cambios en otro resultado integral $",null,"Dólares",0,0]
["410.04.10.03.00.2.01","Al valor razonable con cambios en resultados $",null,"Dólares",0,0]
["410.04.10.03.00.2.02","Al costo amortizado $",null,"Dólares",0,0]
["410.04.10.03.00.2.03","Ganancia del Impuesto sobre la renta por cobrar $",null,"Dólares",68.86,22272.01]
["410.04.10.03.00.4.00","Al valor razonable con cambios en otros resultados integral (UD)",null,"UDES",0,0]
["410.04.10.03.00.4.01","Al valor razonable con cambios en resultados (UD)",null,"UDES",0,0]
["410.04.10.03.00.4.02","Al costo amortizado (UD)",null,"UDES",0,0]
["410.04.10.03.00.4.03","Ganancia del Impuesto sobre la renta por cobrar (UD)",null,"UDES",0,0]
{"$rows_empty":11}
["Interpretación Gráfica Trimestre 2"]
["Esta nota se complementa con la nota N° 3"]

{"sheet":"Nota 9","index":15,"n_rows":20,"n_cols":6,"rows_kept":20,"cut":false,"hidden":false,"merged":[[2,1,3,5],[4,1,4,5],[7,1,7,4]]}
[]
[null,"Nota 9:"]
[null,"Gasto por estimación de Deterioro"]
[]
[null,{"$f":"+'Nota 7'!B5:E5","v":"al 30 de Junio de 2020"}]
[]
[]
[null,"Comprende los movimientos de la estimación de deterioro en activos sobre los instrumentos financieros, de cuentas, productos, dividendos y aportes por cobrar."]
[]
[]
["Cuenta Contable","Cuenta",null,"Moneda","Trimestre 2","Trimestre 1"]
["411.01.01.00.00.1.00.01","Al valor razonable con cambios en otro resultado integral ",null,"Colones",62535846.890000001,162762738.59999999]
["411.01.01.00.00.2.00.01","Al valor razonable con cambios en otro resultado integral ",null,"Dólares",-95739864.269999996,132498558.86]
[null,"Total",null,null,{"$f":"SUM(E12:E13)","v":-33204017.379999995},{"$f":"SUM(F12:F13)","v":295261297.45999998}]
[]
["Cuenta Contable","Cuenta",null,"Moneda","Trimestre 2","Trimestre 1"]
["411.01.02.00.00.1.00.01","Al costo amortizado ¢",null,"Colones",75277044.810000002,0]
["411.01.02.00.00.2.00.01","Al costo amortizado $",null,"Dólares",20646082.18,0]
["411.01.02.00.00.4.00.01","Al costo amortizado  (UD)",null,"UDES",52885403.460000001,0]
[null,"Total",null,null,{"$f":"SUM(E17:E19)","v":148808530.45000002},{"$f":"SUM(F17:F19)","v":0}]

{"sheet":"Nota 10","index":16,"n_rows":30,"n_cols":7,"rows_kept":30,"cut":false,"hidden":false,"merged":[[26,1,26,5],[25,1,25,5],[28,1,28,5],[29,1,29,5],[2,1,3,5],[4,1,4,5],[7,1,7,5],[23,1,23,5],[22,1,22,5]]}
[]
[null,"Nota 10:"]
[null,"GASTOS GENERALES"]
[]
[null,"al 30 de Junio de 2020"]
[]
[]
[null,"Esta cuenta agrupa varias partidas, las cuales se describen a continuación:"]
[]
[]
["Cuenta Contable","GASTOS GENERALES",null,"Moneda",null,"Trimestre 2","Trimestre 1"]
[]
["414.02.07.00.00.1","Servicios profesionales",null,"Colón",null,0,0]
["414.02.08.00.00.1","Servicios bancarios ¢",null,"Colón",null,191447.73,208649.7]
["414.02.09.00.00.1","Cotización Seguro de enfermedad y maternidad",null,"Colón",null,1779292973.04,1787441210.1900001]
["414.02.14.00.00.1.00","Gastos diversos ¢",null,"Colón",null,619030.99,259594.86]
["414.02.08.00.00.2","Servicios bancarios $",null,"Dólar",null,0,1213966.1000000001]
["414.02.14.00.00.2.00","Gastos diversos $",null,"Dólar",null,7430812.8899999997,16725815.779999999]
["414.02.14.00.00.4.00","Gastos diversos (UD)",null,"Udes",null,0.18,15.91]
[]
[null,"TOTAL DE GASTOS GENERALES",null,null,null,{"$f":"SUM(F13:F19)","v":1787534264.8300002},{"$f":"SUM(G13:G19)","v":1805849252.54}]
[]
[null,"Gastos por servicios bancarios:"]
[null,"Corresponde a gastos por comisiones bancarias cobradas por el Banco Nacional , lo anterior a raíz de conclusión “Convenio Institucional entre el Poder Judicial y la referida Entidad Bancaria”, cuyo objeto consistía en que el Poder Judicial aceptaba realizar una serie de transacciones bancarias con el Banco Nacional, a efecto de recibir un trato preferencial en algunos servicios bancarios, como lo fueron: exoneración del pago de cualquier tipo de comisión (transferencias electrónicas, giros bancarios, emisión de estados de cuenta, transacciones “SINPE”, transferencias entre cuentas del Poder Judicial y el Fondo de Jubilaciones y Pensiones), dichos gastos son del conocimiento de la Dirección Ejecutiva, según oficios DGBI-SML-25-2016, 2232-DE-2016 y 2342-DE-2016."]
[]
[null,"Cotización Seguro de Enfermedad y Maternidad: "]
[null,"Carga social en la que incurre el Fondo como Patrono, con la Caja Costarricense del Seguro Social, por concepto de Enfermedad y Maternidad, correspondiente al 8.75% sobre las jubilaciones y pensiones canceladas."]
[]
[null,"Gastos diversos"]
[null,"Corresponde a diversos ajustes relacionados principalmente con las inversiones y cuentas relacionadas. "]

{"sheet":"Nota 11","index":17,"n_rows":41,"n_cols":8,"rows_kept":41,"cut":false,"hidden":false,"merged":[[2,1,3,7],[4,1,4,7],[7,1,7,7],[26,1,26,7],[25,1,25,7],[24,1,24,7]]}
[]
[null,"Nota 11:"]
[null,"Cuentas Corrientes y de Ahorro"]
[]
[null,{"$f":"+'Nota 10'!B5:F5","v":"al 30 de Junio de 2020"}]
[]
[]
[null,"El saldo en cuentas corrientes bancarias que mantiene el Fondo de Jubilaciones en colones y en dólares americanos son los siguientes:"]
["Trimestre 2"]
["Cuenta Contable","CUENTAS CORRIENTES Y DE AHORRO PROV.  PARA PENSIONES EN CURSO DE PAGO",null,"TOTAL ¢",null,"TIPO DE CAMBIO",null,"TOTAL $ \n"]
[]
["110.02.01.01.00.1.00.01","Banco Nacional de C.R. Cta 1234-0",null,99000.28]
["110.02.01.01.00.1.00.02","Banco de Costa Rica Cta 229-32-9",null,10235793963.67]
["110.02.01.01.00.1.00.03","Banco de Costa Rica Cta 174961-7",null,0]
["110.02.01.01.00.1.00.04","Banco Popular Cta 1019277-0",null,0]
["110.02.01.01.00.1.00.05","Banco Nacional de C.R. 2413-8 ",null,0]
["110.02.01.01.00.1.00.06","Banco de Costa Rica 349803-4",null,82.23]
["110.02.01.01.00.1.00.07","Banco de Costa Rica 349824-7",null,0]
["110.02.01.01.00.2.00.01","Banco de Costa Rica Cta. 112247-9 $",null,144042429.06999999,null,583.16,null,247003.27366417449]
["110.02.01.01.00.2.00.02","Banco Nacional de C.R. Cta  601227-7 $",null,817578.65,null,583.16,null,1401.9799883393923]
["110.02.01.01.00.2.00.03","Banco Popular Cta 1914-1 $",null,0,null,null,null,0]
[]
[null,"TOTAL EN CUENTAS CORRIENTES Y DE AHORRO",null,{"$f":"SUM(D12:D21)","v":10380753053.9},null,null,null,{"$f":"SUM(H19:H21)","v":248405.25365251387}]
[]
[null,"Nota: "]
[null,"Los documentos pendientes de asocies y aprobaciones,  se informaron a los Subprocesos correspondientes para su registro, y así el debido seguimiento."]
["Trimestre 1"]
["Cuenta Contable","CUENTAS CORRIENTES Y DE AHORRO PROV.  PARA PENSIONES EN CURSO DE PAGO",null,"TOTAL ¢",null,"TIPO DE CAMBIO",null,"TOTAL $ \n"]
[]
["110.02.01.01.00.1.00.01","Banco Nacional de C.R. Cta 1234-0",null,99943.56]
["110.02.01.01.00.1.00.02","Banco de Costa Rica Cta 229-32-9",null,6351960448.7200003]
["110.02.01.01.00.1.00.03","Banco de Costa Rica Cta 174961-7",null,0]
["110.02.01.01.00.1.00.04","Banco Popular Cta 1019277-0",null,0]
["110.02.01.01.00.1.00.05","Banco Nacional de C.R. 2413-8 ",null,0]
["110.02.01.01.00.1.00.06","Banco de Costa Rica 349803-4",null,82.23]
["110.02.01.01.00.1.00.07","Banco de Costa Rica 349824-7",null,0]
["110.02.01.01.00.2.00.01","Banco de Costa Rica Cta. 112247-9 $",null,88433159.730000004,null,578.74,null,152802.91621453504]
["110.02.01.01.00.2.00.02","Banco Nacional de C.R. Cta  601227-7 $",null,404411.93,null,578.74,null,698.77998755918031]
["110.02.01.01.00.2.00.03","Banco Popular Cta 1914-1 $",null,0,null,578.74,null,0]
[]
[null,"TOTAL EN CUENTAS CORRIENTES Y DE AHORRO",null,{"$f":"SUM(D30:D39)","v":6440898046.1700001},null,null,null,{"$f":"SUM(H37:H39)","v":153501.69620209423}]

{"sheet":"Nota 12","index":18,"n_rows":93,"n_cols":7,"rows_kept":93,"cut":false,"hidden":false,"merged":[[2,1,3,7],[4,1,4,7],[7,1,7,6]]}
[]
[null,"Nota 12:"]
[null,"Inversiones en Instrumentos Financieros"]
[]
[null,{"$f":"+'Nota 11'!B5:H5","v":"al 30 de Junio de 2020"}]
[]
[]
[null,"Dicho rubro resume los diferentes movimientos de inversiones en colones y dólares de acuerdo al modelo de negocio considerando costo de adquisición (Valor Facial + Primas – Descuentos). "]
["Trimestre 2"]
["Cuenta Contable","Al valor razonable con cambios en otros resultados integral",null,"Colones ","Dólares","Udes","Total"]
["120.01.00.00.00"]
[null,"Valor de Adquisición",null,308374749341,77954852144.200012,0,{"$f":"+D12+E12","v":386329601485.20001}]
[null,"(Amortización de principal)",null,0,0,0,{"$f":"+D13+E13","v":0}]
[null,"(Amortización de Primas) ",null,-4662888527.6999998,-101709991.10999998,0,-4764598518.8099995]
[null,"Amortización de Descuentos ",null,389571845.75999999,165323702.31,0,554895548.06999993]
[null,"Ajuste por valuación ",null,12862176970.430002,-5117643253.9299994,0,7744533716.5000029]
[null,"Total",null,{"$f":"SUM(D12:D16)","v":316963609629.48999},{"$f":"SUM(E12:E16)","v":72900822601.470016},0,{"$f":"SUM(G12:G16)","v":389864432230.96002}]
[]
["Cuenta Contable","Al valor razonable con cambios en resultados",null,"Colones ","Dólares","Udes","Total"]
["120.02.00.00.00"]
[null,"Valor de Adquisición"]
[null,"Total",null,0,0,0,0]
[]
["Cuenta Contable","Al costo amortizado",null,"Colones ","Dólares","Udes","Total"]
["120.03.00.00.00"]
[null,"Valor de Adquisición",null,89067212185.209991,10060589942.32,103918281846.99001,{"$f":"+D26+E26+F26","v":203046083974.52002}]
[null,"(Amortización de principal)",null,0,0,0,{"$f":"+D27+E27+F27","v":0}]
[null,"(Amortización de Primas) ",null,-113963112.54000001,0,-4148830595.29,-4262793707.8299999]
[null,"Amortización de Descuentos ",null,61149926.170000002,0,17485761.440000001,78635687.609999999]
[null,"(Estimación por deterioro)",null,-75277044.810000002,-20646082.18,-52885403.460000001,-148808530.45000002]
[null,"Total",null,{"$f":"SUM(D26:D30)","v":88939121954.029999},{"$f":"SUM(E26:E30)","v":10039943860.139999},{"$f":"SUM(F26:F30)","v":99734051609.680008},{"$f":"SUM(G26:G30)","v":198713117423.85001}]
[]
[null,"Resumen",null,"Colones ","Dólares","Udes","Total"]
[null,"Al valor razonable con cambios en otros resultados integral",null,316963609629.48999,72900822601.470016,0,{"$f":"+D34+E34+F34","v":389864432230.96002}]
[null,"Al valor razonable con cambios en resultados",null,0,0,0,{"$f":"+D35+E35+F35","v":0}]
[null,"Al costo amortizado",null,88939121954.029999,10039943860.139999,99734051609.680008,198713117423.85001]
[]
[null,null,null,{"$f":"+D34+D35+D36","v":405902731583.52002},{"$f":"+E34+E35+E36","v":82940766461.610016},{"$f":"+F34+F35+F36","v":99734051609.680008}]
[]
[]
[]
[]
[]
[]
[null,"Interpretación Gráfica Trimestre 2"]
{"$rows_empty":16}
["Trimestre 1"]
["Cuenta Contable","Al valor razonable con cambios en otros resultados integral",null,"Colones ","Dólares","Udes","Total"]
["120.01.00.00.00"]
[null,"Valor de Adquisición",null,288853553365.65997,75788468241.440002,0,{"$f":"+D65+E65","v":364642021607.09998}]
[null,"(Amortización de principal)",null,0,0,0,{"$f":"+D66+E66","v":0}]
[null,"(Amortización de Primas) ",null,-4300906199.6700001,-97109122.700000003,0,-4398015322.3699999]
[null,"Amortización de Descuentos ",null,312842874.81,140396669.72,0,453239544.52999997]
[null,"Ajuste por valuación ",null,24084352327.849998,-3700509321.3699999,0,20383843006.48]
[null,"Total",null,{"$f":"SUM(D65:D69)","v":308949842368.64996},{"$f":"SUM(E65:E69)","v":72131246467.090012},0,{"$f":"SUM(G65:G69)","v":381081088835.73999}]
[]
["Cuenta Contable","Al valor razonable con cambios en resultados",null,"Colones ","Dólares","Udes","Total"]
["120.02.00.00.00"]
[null,"Valor de Adquisición"]
[null,"Total",null,0,0,0,0]
[]
["Cuenta Contable","Al costo amortizado",null,"Colones ","Dólares","Udes","Total"]
["120.03.00.00.00"]
[null,"Valor de Adquisición",null,104417961025.67999,10563076757.049999,104414939460.67,{"$f":"+D79+E79+F79","v":219395977243.39999}]
[null,"(Amortización de principal)",null,0,0,0,{"$f":"+D80+E80+F80","v":0}]
[null,"(Amortización de Primas) ",null,-98264242.719999999,0,-4081067121.5,-4179331364.2199998]
[null,"Amortización de Descuentos ",null,55532197.32,0,17170229.140000001,72702426.460000008]
[null,"Total",null,{"$f":"SUM(D79:D82)","v":104375228980.28},{"$f":"SUM(E79:E82)","v":10563076757.049999},100351042568.31,215289348305.63998]
[]
[]
[null,"Resumen",null,"Colones ","Dólares","Udes","Total"]
[null,"Al valor razonable con cambios en otros resultados integral",null,308949842368.64996,72131246467.090012,0,{"$f":"+D87+E87+F87","v":381081088835.73999}]
[null,"Al valor razonable con cambios en resultados",null,0,0,0,{"$f":"+D88+E88+F88","v":0}]
[null,"Al costo amortizado",null,104375228980.28,10563076757.049999,100351042568.31,215289348305.64001]
[]
[null,null,null,{"$f":"+D87+D88+D89","v":413325071348.92993},{"$f":"+E87+E88+E89","v":82694323224.140015},{"$f":"+F87+F88+F89","v":100351042568.31}]
[]
[null,"Interpretación Gráfica Trimestre 1"]

{"sheet":"Nota 13","index":19,"n_rows":93,"n_cols":7,"rows_kept":93,"cut":false,"hidden":false,"merged":[[2,1,3,7],[4,1,4,7],[10,9,10,15],[9,1,9,6],[10,1,10,6],[7,1,7,6]]}
[]
[null,"Nota 13:"]
[null,"Productos y dividendos por cobrar asociados a inversiones en instrumentos financieros"]
[]
[null,{"$f":"+'Nota 11'!B5:H5","v":"al 30 de Junio de 2020"}]
[]
[]
[null,"La cuenta se conforma por el registro de:"]
[]
[null,"·         La parte proporcional de los intereses, rendimientos y dividendos por las inversiones, que fueron adquiridas por el Fondo."]
[null,"·        Además comprende los registros de aquellas inversiones que a su fecha de vencimiento deben ser reclasificados según lo requerido por el ente Rector a las cuentas de vencidos y restringidos."]
[]
["Trimestre 2"]
["Cuenta Contable","Al valor razonable con cambios en otros resultados integral",null,"Colones ","Dólares","Udes","Total"]
["120.07.01.01.00"]
[null,"Intereses",null,6860504725.7399998,627047671.01499987,0,{"$f":"SUM(D16:F16)","v":7487552396.7549992}]
[null,"Rendimientos",null,0,0,0,{"$f":"SUM(D17:F17)","v":0}]
[null,"Dividendos",null,0,417764289.01999998,0,417764289.01999998]
[null,"Total",null,{"$f":"SUM(D16:D18)","v":6860504725.7399998},{"$f":"SUM(E16:E18)","v":1044811960.0349998},0,7905316685.7749996]
[]
["Cuenta Contable","Al valor razonable con cambios en resultados",null,"Colones ","Dólares","Udes","Total"]
["120.07.01.02.00"]
[null,"Intereses",null,0,0,0,0]
[null,"Rendimientos",null,0,0,0,0]
[null,"Dividendos",null,0,0,0,0]
[null,"Total",null,0,0,0,0]
[]
["Cuenta Contable","Al costo amortizado",null,"Colones ","Dólares","Udes","Total"]
["120.07.01.03.00"]
[null,"Intereses",null,1568493398.5700002,85451548.685000002,504855570.74000001,{"$f":"SUM(D30:F30)","v":2158800517.9949999}]
[null,"Rendimientos",null,0,0,0,0]
[null,"Dividendos",null,0,0,"-",0]
[null,"Total",null,{"$f":"SUM(D30:D32)","v":1568493398.5700002},{"$f":"SUM(E30:E32)","v":85451548.685000002},{"$f":"SUM(F30:F32)","v":504855570.74000001},{"$f":"SUM(G30:G32)","v":2158800517.9949999}]
[]
[]
[null,"Resumen",null,"Colones ","Dólares","Udes","Total"]
[null,"Al valor razonable con cambios en otros resultados integral",null,6860504725.7399998,1044811960.0349998,0,{"$f":"SUM(D37:F37)","v":7905316685.7749996}]
[null,"Al valor razonable con cambios en resultados",null,0,0,0,{"$f":"SUM(D38:F38)","v":0}]
[null,"Al costo amortizado",null,1568493398.5700002,85451548.685000002,504855570.74000001,2158800517.9949999]
[]
[null,null,null,{"$f":"SUM(D37:D40)","v":8428998124.3099995},{"$f":"SUM(E37:E40)","v":1130263508.7199998},504855570.74000001,{"$f":"SUM(G37:G40)","v":10064117203.77}]
[]
[]
[]
["Interpretación Gráfica Trimestre 2"]
{"$rows_empty":17}
["Trimestre 1"]
["Cuenta Contable","Al valor razonable con cambios en otros resultados integral",null,"Colones ","Dólares","Udes","Total"]
["120.07.01.01.00"]
[null,"Intereses",null,3362058343.8099999,339493074.09499997,0,{"$f":"SUM(D66:F66)","v":3701551417.9049997}]
[null,"Rendimientos",null,0,0,0,{"$f":"SUM(D67:F67)","v":0}]
[null,"Dividendos",null,0,490875779.95999998,0,490875779.95999998]
[null,"Total",null,{"$f":"SUM(D66:D68)","v":3362058343.8099999},{"$f":"SUM(E66:E68)","v":830368854.05499995},0,4192427197.8649998]
[]
["Cuenta Contable","Al valor razonable con cambios en resultados",null,"Colones ","Dólares","Udes","Total"]
["120.07.01.02.00"]
[null,"Intereses",null,0,0,0,0]
[null,"Rendimientos",null,0,0,0,0]
[null,"Dividendos",null,0,0,0,0]
[null,"Total",null,0,0,0,0]
[]
["Cuenta Contable","Al costo amortizado",null,"Colones ","Dólares","Udes","Total"]
["120.07.01.03.00"]
[null,"Intereses",null,1662850385.9200001,97617991.435000002,235517566.34,{"$f":"SUM(D80:F80)","v":1995985943.6949999}]
[null,"Rendimientos",null,0,0,0,0]
[null,"Dividendos",null,0,0,"-",0]
[null,"Total",null,{"$f":"SUM(D80:D82)","v":1662850385.9200001},{"$f":"SUM(E80:E82)","v":97617991.435000002},{"$f":"SUM(F80:F82)","v":235517566.34},{"$f":"SUM(G80:G82)","v":1995985943.6949999}]
[]
[null,"Resumen",null,"Colones ","Dólares","Udes","Total"]
[null,"Al valor razonable con cambios en otros resultados integral",null,3362058343.8099999,830368854.05499995,0,{"$f":"SUM(D86:F86)","v":4192427197.8649998}]
[null,"Al valor razonable con cambios en resultados",null,0,0,0,{"$f":"SUM(D87:F87)","v":0}]
[null,"Al costo amortizado",null,1662850385.9200001,97617991.435000002,235517566.34,1995985943.6949999]
[null,null,null,{"$f":"SUM(D86:D90)","v":5024908729.7299995},{"$f":"SUM(E86:E90)","v":927986845.49000001},{"$f":"SUM(F86:F90)","v":235517566.34},{"$f":"SUM(G86:G90)","v":6188413141.5599995}]
[]
[]
[]
["Interpretación Gráfica Trimestre 1"]

{"sheet":"Nota 14","index":20,"n_rows":15,"n_cols":5,"rows_kept":15,"cut":false,"hidden":false,"merged":[[2,1,3,3],[4,1,4,3],[21,4,22,5],[5,1,5,3],[19,1,19,3],[21,1,21,3],[22,1,22,3],[14,1,17,3]]}
[]
[null,"Nota 14:"]
[null,"CUENTAS POR COBRAR"]
[]
[null,{"$f":"+'Nota 12'!B5:H5","v":"al 30 de Junio de 2020"}]
[null,"En esta cuenta se registran aquellas partidas que debe recuperar el Fondo y se conforma por los siguientes conceptos:"]
[]
["Cuenta Contable","Cuentas por Cobrar",null,"Trimestre 2","Trimestre 1"]
[]
["130.01.00.00.00","Impuesto Sobre La Renta Por Cobrar ",null,760764302.22000003,1030539285.76]
["130.03.01.00.00","Sumas pendientes de cobrar otras",null,24222.16,441585.41]
[]
[null,"Saldo:",null,{"$f":"SUM(D10:D12)","v":760788524.38},{"$f":"SUM(E10:E12)","v":1030980871.17}]
[]
[null,"1) Corresponden aquellas sumas que debe recuperar el Régimen por concepto de exención del 8% del impuesto sobre la renta de los títulos valores, que por su situación particular, no es posible cobrarlos inmediatamente con el vencimiento de los cupones. El Subproceso de Ingresos indica lo siguiente con el seguimiento: (1) La Presidencia de la Corte remitió un oficio a Casa Presidencial para los años 2004 y 2005. La Dirección Ejecutiva con oficio 4167-DE-2019 del 11/09/2019 indicó al Director del Despacho de la Presidencia: \"Traslado copia de oficio N° 737-TI-2019 de fecha 9 de setiembre en curso, referente a la devolución del impuesto sobre renta de vieja data, a efecto de que se nos informe si se ha tenido algún avance respecto a las conversaciones con el Presidente de la República, encomendadas por el Consejo Superior en sesión N° 84-18 celebrada el 25 de setiembre de 2018, artículo XV\". Al respecto, la Presidencia de la Corte en el mes de setiembre de 2019, remite consulta por correo electrónico de fecha a Casa Presidencial el cual cita: \"Siguiendo instrucciones superiores y en referencia al oficio adjunto, el cual fue recibido por el Ministerio de la Presidencia el 4 de abril de 2019, me permito consultarle si existe alguna respuesta al respecto.\" Se mantiene el seguimiento del caso. (2) La Presidencia de la Corte remitió un oficio a Grandes Contribuyentes para lo del periodo 2018. La Dirección Ejecutiva con oficio 4669-DE-2019 del 04 de octubre de 2019 remite a Financiero Contable el acuerdo del Consejo Superior de Sesión 80-19 del 12 de setiembre de 2019, mediante el cual se acordó: \"...) Tener por recibido el oficio N° 4040-DE-2019 del 5 de setiembre de 2019, suscrito por la máster Ana Eugenia Romero Jenkins, Directora Ejecutiva, relacionado con las acciones legales procedentes en relación a la resolución DGCN-133-2019, emitida por la señora Patricia Castillo Vargas, directora de la Dirección de Grandes Contribuyentes Nacionales. 2.)  Deberá el Departamento de Financiero Contable alertar a la Junta Administradora del Fondo de Pensiones del Poder Judicial, en el informe de traspaso de la Comisión del Fondo de Jubilaciones y Pensiones del Poder Judicial, sobre la situación expuesta en el criterio jurídico N° DJ-2361-2019 de fecha 3 de setiembre de 2019, suscrito por el máster Rodrigo Alberto Campos Hidalgo, Director Jurídico...\" (3) El Subproceso de Ingresos realizó las gestiones correspondientes para la devolución de los correspondiente de Fondos Inmobiliarios. De lo anterior, se solicitará a dicho Subproceso de Ingresos que es el encargado de dichas cuentas el seguimiento del mismo. El cual indica que, en cuanto al criterio emitido por la firma Facio y Cañas que, con oficio 916-TI/UCC-2018 del 02 de octubre de 2018 se hizo del conocimiento de la Dirección Ejecutiva, de lo cual esa Dirección con oficio 4855-DE-2018 del 10 de octubre de 2018, indicó que se debe estar a espera del resultado del Recurso de Apelación contra la resolución N° DGCN-097-2018 de fecha 31 de mayo de 2018, en la cual se denegó la exención del Impuesto sobre la Renta en los rendimientos generados en operaciones de recompras o reportos realizadas por medio de una bolsa de valores y operaciones con fondos de inversión y fondos inmobiliarios."]

{"sheet":"Nota 15","index":21,"n_rows":65,"n_cols":12,"rows_kept":65,"cut":false,"hidden":false,"merged":[[64,1,64,5],[53,1,53,3],[53,7,53,9],[7,10,7,11],[31,1,31,9],[32,1,32,9],[34,1,34,9],[35,1,35,9],[36,1,36,9],[37,1,37,9],[39,1,39,9],[41,1,41,9],[43,1,43,9],[44,1,44,9],[46,1,46,9],[47,1,47,9],[49,1,49,9],[51,1,51,9],[50,1,50,9],[2,1,3,9],[4,1,4,9],[6,1,6,9],[28,1,28,9],[29,1,29,9],[7,7,7,9]]}
[]
[null,"Nota 15:"]
[null,"APORTES POR COBRAR"]
[]
[null,"Al 30 de Junio de 2020"]
[]
[null,"Corresponden a los aporte de los trabajadores, del patrono, del estado y jubilados-Pensionados que se detallan a continuación:"]
[{"$nulls":7},"Trimestre 2",null,null,"Trimestre 1"]
["Cuenta Contable","Nota",null,"Sub-nota",null,"APORTES POR COBRAR",null,"Detalle",null,"Total","Detalle","Total"]
[]
["150.01.00.00.00     ","15.1",null,null,null,"Aporte por cobrar a los trabajadores",null,null,null,{"$f":"SUM(H12:H14)","v":4950151623.8900003},null,{"$f":"SUM(K12:K14)","v":4210631531.7399998}]
[null,null,null,"15.1.1",null,"Aporte Ordinario",null,686175.92,null,null,145119.06]
[null,null,null,"15.1.2",null,"Aporte Ordinario S .Escolar",null,1380822609.55,null,null,706171792.55999994]
[null,null,null,"15.1.3",null,"Aporte Reconocimiento de tiempo servido",null,3568642838.4200001,null,null,3504314620.1199999]
["150.02.00.00.00     ","15.2",null,null,null,"Aportes por cobrar al Patrono",null,null,null,{"$f":"SUM(H16:H17)","v":3137009929.0988002},null,{"$f":"SUM(K16:K17)","v":3920522876.0388002}]
[null,null,null,"15.2.1",null,"Aportes Por Cobrar Poder Jud.-Patrono",null,1611447286.9848001,null,null,3151366540.3548002]
[null,null,null,"15.2.2",null,"Apor. x Cobrar Poder Jud.-Patrono (S.E)",null,1525562642.1140001,null,null,769156335.68400002]
["150.03.00.00.00     ","15.3",null,null,null,"Aportes por cobrar al Estado",null,null,null,{"$f":"SUM(H19:H20)","v":307553601.75999999},null,{"$f":"SUM(K19:K20)","v":228492269.04999998}]
[null,null,null,"15.3.1",null,"Aportes Por Cobrar Poder Jud.-Estado",null,158070005.21000001,null,null,153206549.63999999]
[null,null,null,"15.3.2",null,"Apor. x Cobrar Poder Jud.-Estado (S.E)",null,149483596.55000001,null,null,75285719.409999996]
["150.04.00.00.00     ","15.4",null,null,null,"Otros aportes por cobrar",null,null,null,{"$f":"SUM(H22:H25)","v":205282987.67000002},null,{"$f":"SUM(K22:K25)","v":207840434.57999998}]
[null,null,null,"15.4.1",null,"O. Aportes Por Cobrar Jubilados",null,177146685.49000001,null,null,181138463.94999999]
[null,null,null,"15.4.2",null,"O. Aportes Por Cobrar Pensionados",null,26292658.420000002,null,null,24765070.329999998]
[null,null,null,"15.4.3",null,"O. Aportes Por Cobrar E. Deductoras",null,1843643.76,null,null,1936900.3]
[]
[]
[{"$nulls":5},"TOTAL ",null,null,null,{"$f":"SUM(J11:J25)","v":8599998142.4188004},null,{"$f":"SUM(L11:L25)","v":8567487111.4088001}]
[]
[null,"15.1 Aportes por cobrar a los trabajadores"]
[null,"Este grupo contempla las sumas por cobrar proveniente de la estimación mensual del salario escolar a los servidores activos del Poder Judicial. Adicionalmente, incluye los aportes por cobrar de las obligaciones por reconocimiento de tiempo servido fuera del Poder Judicial aprobado por el Consejo Superior de la Corte Suprema de Justicia, a servidores judiciales activos, para efectos de jubilación."]
[]
[null,"15.2 Aportes por cobrar al Patrono "]
[null,"Se compone de las sumas pendientes de cobrar por aportes que recibe el Fondo de Jubilaciones y Pensiones del Estado en su calidad de patrono."]
[]
[null,"15.3 Aportes por cobrar al Estado "]
[null,"Este grupo lo componen las sumas pendientes de cobrar por aportes al Estado que recibe el Fondo de Jubilaciones y Pensiones. "]
[null,"15.4 Otros aportes por cobrar"]
[null,"Sumas canceladas de más a Jubilados y Pensionados"]
[]
[null,"• Por fallecimiento: Dineros girados de más a jubilados y pensionados fallecidos, donde la fecha de su defunción no fue conocida oportunamente. Es importante anotar que en estos casos el Macroproceso Financiero Contable realiza como uno de los mecanismos alternativos para la recuperación de las sumas giradas en demasía, una “Acta de autorización de rebajo”, mediante la cual los beneficiarios al Fondo de Socorro Mutuo designados por el jubilado fallecido, autorizan voluntariamente la deducción de ese beneficio, de las sumas pagadas de más por el Fondo de Jubilaciones. Dicha deducción se realiza solo con el consentimiento de los causahabientes, los cuales acceden a honrar las obligaciones del jubilado fallecido. Para los casos en donde el procedimiento no ha resultado factible, se analiza el caso y se eleva a conocimiento de las instancias correspondientes. "]
[]
[null,"• Estudios por sumas canceladas de más a jubilados y pensionados: Además se registran las sumas canceladas de más por conceptos diversos, entre los cuales los más relevantes son los montos pagados de más a jubilados que en determinado momento ejercieron un puesto en el Sector Público percibiendo otro sueldo del Estado, de sus bancos, de sus instituciones, de las municipalidades, de las juntas de educación y de las empresas de economía mixta, a los cuales se les suspendió el beneficio del Fondo de Jubilaciones tardíamente, girándoseles recursos en demasía que no les correspondía, de conformidad con lo que reza el artículo 234 de la Ley Orgánica del Poder Judicial. "]
[]
[null,"Aportes Reconocimiento de Tiempo Servido"]
[null,"Corresponde a las contribuciones por cobrar, como resultado del reconocimiento de tiempo servido fuera del Poder Judicial aprobado por el Consejo Superior de la Corte Suprema de Justicia, a servidores judiciales activos y jubilados o pensionados que asumen la deuda de un ex jubilado, según el artículo 231 de la Ley Orgánica del Poder Judicial."]
[]
[null," Otros aportes por cobrar a Entidades Deductoras"]
[null,"Corresponde a cuentas por cobrar a las entidades deductoras por conceptos diversos entre los cuales los más relevantes son producto de:  "]
[]
[null,"·         La anulación de pagos por concepto de asignaciones por exclusión de beneficiarios del Fondo (fallecimiento, mayoría de edad, matrimonio o cuando el beneficiario se encuentra laborando para otra Institución del Estado mientras recibía el beneficio de su jubilación por parte de este Fondo)"]
[]
[null,"·         Diferencias en la aplicación de ajustes en los montos de las jubilaciones y pensiones que corresponden a deducciones en planilla que ya han sido giradas a dichas Entidades, cuando el Fondo se entera del suceso."]
[]
[null,"Trimestre 2",{"$nulls":5},"Trimestre 1"]
{"$rows_empty":10}
[null,"Trimestre 1"]

{"sheet":"Nota 16","index":22,"n_rows":12,"n_cols":8,"rows_kept":12,"cut":false,"hidden":false,"merged":[[2,1,3,7],[4,1,4,7],[11,1,11,7]]}
[]
[null,"Nota 16:"]
[null,"INTANGIBLES"]
[]
[null,{"$f":"+'Nota 15'!B5:J5","v":"Al 30 de Junio de 2020"}]
[]
[null,"Detalle",null,"Monto",null,"Amortización",null,"Total"]
[null,"Sistema inversiones \"Internet Systems Development Insyde S.A\"",null,7618670,null,-7618670,null,0]
[]
[]
[null,"Nota:"]
[null,"Corresponde al registro de la compra del Sistema de Inversiones a la empresa Internet Systems Development Insyde S.A. con un valor de $14,750.00, valorado al tipo de cambio de la fecha de adquisición del activo (15 de agosto de 2007) de ¢516.52, para un total de ¢7,618,670. A dicho monto se descuenta la amortización acumulada al cierre del presente mes que asciende a ¢7,618,670 para un activo neto de ¢0.00. La vida útil del sistema en mención es de 5 años y considerando que fue registrado en setiembre del 2007 se encuentra depreciado en su totalidad, no obstante, a la fecha de este informe se encuentra en funcionamiento. \n\nEn el periodo comprendido entre el 15 de julio a 12 de diciembre del 2011 la Dirección de Tecnología de Información realizó mejoras al sistema de Inversiones por la suma de ¢1.673.895. Lo anterior, de acuerdo con la información suministrada por la Dirección de Tecnología de la Información, mediante correo electrónico del 27 de abril del 2017 y oficio 1635-DTI-2017, dicho monto se encuentra registrado actualmente en los registros contables del Poder Judicial por igual suma.\n\nCon oficio 425-SC-2015 de 26 de agosto del 2015, se realizó la consulta a la Superintendencia de Pensiones (SUPEN) sobre la forma de registro contable de la información suministrada por la Dirección de Tecnología de Información, en virtud de que, en el Manual de Cuentas para el Régimen de Capitalización Colectiva emitido por dicha Superintendencia, no se observa alguna cuenta contable para el registro de la reevaluación de activos intangibles.\n\n La SUPEN ante la consulta realizada, indicó lo siguiente:\n\n“[…] conforme lo establecido en las Normas internacionales de Información Financiera (NIIF), se le comunica que no existe forma alguna de atribuir costo a un activo intangible luego del final de su vida útil: aunque esté en operación y generando beneficios, su valor en libros deberá seguir siendo cero…” \n\n\n\n\n"]

{"sheet":"Nota 17","index":23,"n_rows":50,"n_cols":8,"rows_kept":50,"cut":false,"hidden":false,"merged":[[3,2,4,4],[5,2,5,4],[8,2,8,4],[49,1,49,6]]}
[]
[null,null,"Nota 17:"]
[]
[null,null,"Retenciones A Pensionados"]
[]
[null,null,{"$f":"+'Nota 16'!B5","v":"Al 30 de Junio de 2020"}]
[]
[]
[null,null,"Comprende las retenciones mensuales aplicadas en la planilla de jubilados y pensionados judiciales correspondientes a entidades deductoras, que realiza el Fondo a sus distintos beneficiarios, las cuales en el caso de la retención del impuesto sobre la renta y la cuota obrera por enfermedad y maternidad son honradas hasta el mes siguiente de su aplicación."]
[]
[]
[null,"Cuenta Contable","RETENCIONES A JUBILADOS Y PENSIONADOS",null,"Trimestre 2",null,"Trimestre 1"]
[]
[null,"211.01.01.00.00.1.00.01","Impuesto Sobre La Renta",null,598124814.98000002,null,608557702.89999998," "]
[null,"211.01.02.00.00.1.00.01","Caja Costarricense Seguro Social",null,337170213.19999999,null,341764412.29000002]
[null,"211.01.04.00.00.1.00.01","Caprede",null,118541611.09999999,null,0]
[null,"211.01.04.00.00.1.00.02","Fondo Socorro Mutuo",null,5238750,null,0]
[null,"211.01.04.00.00.1.00.03","Anejud",null,5702546.3200000003,null,0]
[null,"211.01.04.00.00.1.00.04","I.N.S.",null,1019158.5,null,0]
[null,"211.01.04.00.00.1.00.05","Pensiones Alimentarias",null,21472070.719999999,null,0]
[null,"211.01.04.00.00.1.00.06","Banco Popular",null,88221386.150000006,null,0]
[null,"211.01.04.00.00.1.00.08","Coopeservidores",null,32914234,null,0]
[null,"211.01.04.00.00.1.00.09","Cta 20192-8",null,257917.14,null,0]
[null,"211.01.04.00.00.1.00.10","Asojupen",null,25476067.66,null,0]
[null,"211.01.04.00.00.1.00.11","CoopeJudicial",null,149665032,null,0]
[null,"211.01.04.00.00.1.00.12","Coocique",null,3196598,null,0]
[null,"211.01.04.00.00.1.00.14","Servicoop",null,2907062.06,null,0]
[null,"211.01.04.00.00.1.00.15","Coopealianza",null,52603201.960000001,null,0]
[null,"211.01.04.00.00.1.00.16","Asosejud",null,11198575.34,null,0]
[null,"211.01.04.00.00.1.00.17","Anic",null,1034664.79,null,0]
[null,"211.01.04.00.00.1.00.18","Coopenae",null,48693898.5,null,0]
[null,"211.01.04.00.00.1.00.19","Coopecaja R.L.",null,9333041.1600000001,null,0]
[null,"211.01.04.00.00.1.00.20","Asejuque",null,75700,null,0]
[null,"211.01.04.00.00.1.00.21","CoopeSanGabriel",null,1693414.45,null,0]
[null,"211.01.04.00.00.1.00.22","Colegio de Abogados de C.R.",null,1160700,null,0]
[null,"211.01.04.00.00.1.00.23","CoopeAnde No. 5",null,265477.5,null,0]
[null,"211.01.04.00.00.1.00.24","Coopesparta",null,1324339.6299999999,null,0]
[null,"211.01.04.00.00.1.00.25","Asociación Deportiva del Pod",null,31000,null,0]
[null,"211.01.04.00.00.1.00.26","COOPEMAPRO R.L",null,151825.41,null,0]
[null,"211.01.04.00.00.1.00.27","Coopenacional R.L.",null,793913.5,null,0]
[null,"211.01.04.00.00.1.00.28","COOPEAFM RL",null,289547.88,null,0]
[null,"211.01.04.00.00.1.00.29","SITRAJUD",null,83318.5,null,0]
[null,"211.01.04.00.00.1.00.31","Coope San Ramon R.L",null,378450,null,0]
[null,"211.01.04.00.00.1.00.32","COOPEMEP R.L",null,5005134.46,null,0]
[null,"211.01.04.00.00.1.00.33","COOPEANDE N° 1",null,6296125,null,0]
[null,"211.01.04.00.00.1.00.34","Coopeservicios R.L.",null,1465086.79,null,0]
[]
[null,null,"TOTAL DE RETENCIONES A JUBILADOS Y PENSIONADOS",null,{"$f":"SUM(E14:E47)","v":1531784876.7000008},null,{"$f":"SUM(G14:G47)","v":950322115.19000006}]
[]
[null,"Los saldos de Junio se presentan por cuanto los documentos bancarios correspondientes no fueron asociados en el presente mes."]

{"sheet":"Nota 18","index":24,"n_rows":16,"n_cols":4,"rows_kept":16,"cut":false,"hidden":false,"merged":[[2,1,3,2],[4,1,4,2],[6,1,6,3],[15,1,17,3]]}
[]
[null,"Nota 18:"]
[null,"Obligaciones Por Liquidar Empleados y Exempleados"]
[]
[null,{"$f":"+'Nota 17'!C6","v":"Al 30 de Junio de 2020"}]
[]
[null,"En esta cuenta se registran sumas sujetas a devolución por parte del Fondo de Jubilaciones y Pensiones que corresponden a pagos recibidos de más en la cancelación de obligaciones por cobrar por reconocimiento de tiempo servido fuera del Poder Judicial, derivados por el traslado de cuotas que realiza la Caja Costarricense del Seguro Social u otro régimen de pensiones hacia el Fondo de Jubilaciones, las cuales deben abonarse a las cuentas de los servidores judiciales, sin embargo, algunos de esos traslados ingresan cuando ya el servidor ha cancelado la deuda, por lo que se genera un pasivo a favor de éste. "]
[]
[null,"OBLIGACIONES POR LIQUIDAR EMPL. Y EXEMPL.","Trimestre 2","Trimestre 1"]
[]
[null,"ONGJ",3722763.78,3722763.78]
[null,"TGJ",67742.62,0]
[null,"RVH",55036.17,0]
[null,"OBLIGACIONES POR LIQUIDAR EMPL. Y EXEMPL.",{"$f":"SUM(C11:C13)","v":3845542.57},{"$f":"SUM(D11:D13)","v":3722763.78}]
[]
[null,"Con respecto al caso de ONGJ, se ha dado el seguimiento respectivo y el Subproceso de Ingresos indicó lo siguiente: registrado en febrero 19 producto de devolución de Traslado de cuotas de la CCSS por RTS, cuya deuda fue reversada porque fue dejada según lo ordenado por Consejo Superiorsesión 14-19 artículo LXIV del 19 de febrero de 2019, sin embargo se debe esperar a que ese Consejo defina a cuanto equivale el monto a deducido por ese concepto y analice informe de Gestión Humana en donde se calcula dicho tiempo. Mediante correo electrónico del 2 de julio de 2019 el Subproceso de Ingresos informa: \"Con acuerdo del Consejo Superior de sesión 32-19 artículo XII, del 08 de mayo de 2019, se acordó: \": Solicitar criterio a la Dirección Jurídica, respecto a la procedencia de acreditar los recursos trasladados por la Caja Costarricense de Seguro Social (CCSS) al Fondo de Jubilaciones y Pensiones del Poder Judicial a nombre de los servidores.” De lo anterior, el Subproceso de Ingresos mantuvo una reunión con la Dirección Jurídica el 3 de octubre de 2019 en la cual acordaron que dicha Dirección remitiría el criterio jurídico. Con correo del 13 de abril 2020 el Proceso de Inversiones indica que se le consulto a la Dirección Juridica el pasado 12 de marzo de 2020 sobre este tema indicando que solicitaron una  prórroga de dos meses al Consejo Superior."]

{"sheet":"Nota 19","index":25,"n_rows":58,"n_cols":5,"rows_kept":58,"cut":false,"hidden":false,"merged":[[45,1,45,4],[47,1,47,4],[48,1,48,4],[50,1,50,4],[40,1,40,4],[41,1,41,4],[42,1,42,4],[43,1,43,4],[44,1,44,4],[49,1,49,4],[3,1,4,3],[5,1,5,3],[8,1,8,3],[27,1,35,4],[38,1,38,4],[57,1,57,2],[51,1,51,3],[52,1,52,2],[53,1,53,2],[54,1,54,2],[55,1,55,2],[56,1,56,2]]}
[]
[null,"Nota 19:"]
[]
[null,"Obligaciones Transitorias por Liquidar"]
[]
[null,{"$f":"+'Nota 18'!B5:B5","v":"Al 30 de Junio de 2020"}]
[]
[]
[null,"En esta se registran sumas transitorias que deben liquidarse oportunamente y se compone de los siguientes rubros:"]
[]
["Cuenta Contable","Obligaciones Transitorias por Liquidar",null,"Trimestre 2","Trimestre 1"]
["211.07.01.00.00.1.00.01","Cuotas para otros regímenes",null,0]
["211.07.03.00.00.1.00.01","Benef. no retirados y por fallecimiento",null,56698158.609999999,52471381.219999999]
["211.07.03.00.00.1.01.01","Sumas en transito por aclarar ¢",null,30698110.379999999,371592244.94]
["211.07.03.00.00.1.02.04","Institucione Financieras Banco Popular ¢",null,498197.34,498197.34]
["211.07.03.00.00.1.03.03","Instituciones Gubernamentales-Caja Costarricense Seguro Social",null,3804819.36,3804819.36]
["211.07.03.00.00.1.04.01","Anejud",null,148458.06,148458.06]
["211.07.03.00.00.1.04.03","Otros-Errores Bancarios",null,4610.8599999999997,4610.8599999999997]
["211.07.03.00.00.1.05.01","Transitoria de deducción",null,745140.19,810169.97]
["211.07.03.00.00.1.06.01","* Aporte Junta Administradora FJP",null,2801360405.3499999,2506997445.0999999]
["211.07.03.00.00.1.06.02","* Aporte Junta Administradora FJP - Jubilados y Pensionados",null,804083867.00999999,702399539.09000003]
["211.07.03.00.00.1.07.01","Intereses ganados en cta cte Junta. Adm",null,172272500.94]
["211.07.03.00.00.2.00.01","Sumas en tránsito por aclarar $",null,0,0]
["211.07.03.00.00.2.01.04","Instituciones Financieras-Banco Popular $",null,232250.73,232250.73]
[]
[null,"Total Obligaciones Transitorias por Liquidar",null,{"$f":"SUM(D12:D24)","v":3870546518.8299999},{"$f":"SUM(E13:E24)","v":3638959116.6700001}]
[]
[null,"* Nota 1: Mediante la publicación de la Ley 9544, se aplica la reforma al capítulo IV, art 239, referente a la comisión por gastos administrativos, la cual indica:      \" Surgirá de deducir un cinco por mil de los sueldos de que devengen los servidores judicial, así como de las jubilaciones y las pensiones a cargo del Fondo. Con estos recursos se pagarán las dietas de los miembros de la Junta Administradora, los salarios de su personal y, en general, sus gastos administrativos...\", dicho aporte dio inicio a partir del 22/05/2018."]
{"$rows_empty":10}
[null,"Con respecto a las sumas en tránsito por aclarar el monto de ¢2,766,747 más antiguo y se encuentra en análisis por parte del Subproceso de Ingresos, el cual indicó mediante correo electrónico del 9 de setiembre 2019 que la CCSS remitió una serie de informes de inspección y se está en el análisis para identificar los montos si corresponden al FJPPJ, por cuanto informarán cuando culminen. La CCSS el 28-10-2019 según oficio SARCL-691-10-2019 remitió la lista de los informes de inspección relacionados con este rubro, de lo cual con oficio 949-TI-2019 del 04-12-2019, se solicitó a la CCSS los informes faltantes en virtud que los remitidos anteriormente no corresponden. Y el monto de ¢ 18,237.45 corresponde a ingresos mayo 2019. "]
[]
[null,"El monto por pagar a la Caja Costarricense del Seguro Social, obedece a:"]
[null,"o   ¢2,890,336 correspondiente a pagos dobles efectuados por dicha entidad producto de informes de inspección por cuotas canceladas de más y devolución de aportes. Lo anterior fue comunicado a la Dirección Ejecutiva mediante oficio 293-SC-2013 del 5 de julio del 2013, siendo que, dicha Dirección informó mediante oficio 5912-DE-2013 que toma nota de lo anterior. "]
[null,"o   ¢2,888 por suma pagada de más por la C.C.S.S en el informe de inspección 1238-00249-2012-I, misma que fue informada a la Dirección Ejecutiva mediante oficio 383-SC-2013 del 4 de septiembre del 2013. Siendo que dicha Dirección mediante oficio 1861-DE/AL-2012 del 16 de setiembre del 2013 informa que se toma de lo informado."]
[null,"o   ¢13,749 la cual obedece al caso de la señora MCSV dado que no corresponde la devolución efectuada por la C.C.S.S., en virtud que la Dirección Ejecutiva mediante oficio 555-DE/CA-2012 del 7 de junio del 2013, remitió resolución 3506-2012 del 7 de junio del 2012 en la cual ordena el archivo definitivo de la deuda por no proceder."]
[null,"o   ¢843,454 corresponde a la devolución de cuotas obrero-patronales según resolución emitida por la C.C.S.S, mediante Informe de Inspección de dicha entidad No. 1238-00079-2015-I del 26 de enero de 2015."]
[null,"o   ¢9.022 corresponde a la devolución de cuotas obrero-patronales según resolución emitida por la C.C.S.S, mediante Informe de Inspección de dicha entidad No. 1238-00274-2015-I del 09 de febrero de 2015."]
[]
[null,"o  El monto de ¢ 37,002, el Subproceso de Ingresos indica mediante correo electrónico del 12/08/2019 que se encuentra en proceso de verificar la naturaleza de los recursos, por lo que se encuentra en estudio"]
[null,"o  El monto de ¢ 8,368 con oficio SARCL-065-01-2019 la CCSS canceló del informe de inspección 1235-00902-2018-I el monto, sin embargo ya había sido cancelado mediante informe de inspección SARCL-0723-2018."]
[null,"Disminución cuenta de Aporte de Junta Administradora:"]
[null,"A solicitud de la Junta Administradora del Fondo de Jubilaciones y Pensiones del Poder Judicial a partir de febrero 2020 se realizan traslados de los recursos a la cuenta bancaria de la Junta."]
[null,"Traslados contabilizados por mes:"]
[null,"Febrero",null,3873684]
[null,"Marzo",null,24116334]
[null,"Abril ",null,12367176.34]
[null,"Mayo",null,669683.97]
[null,"Junio",null,8121517.9900000002]
[null,"Total ",null,{"$f":"SUM(D53:D57)","v":49148396.300000004}]

{"sheet":"Nota 20","index":26,"n_rows":12,"n_cols":7,"rows_kept":12,"cut":false,"hidden":false,"merged":[[3,1,4,5],[5,1,5,5],[8,1,8,5]]}
[]
[null,"Nota 20:"]
[]
[null,"Cotización Seguro De Enfermedad y Maternidad"]
[]
[null,{"$f":"+'Nota 19'!B6:D6","v":"Al 30 de Junio de 2020"}]
[]
[]
[null,"Este pasivo se conforma por la cuota patronal del 8.75% que el Fondo de Jubilaciones y Pensiones debe pagar mensualmente a la Caja Costarricense de Seguro Social (C.C.S.S.), según lo estipulado en el artículo 62 del Reglamento del Seguro Salud."]
[]
["Cuenta Contable","Entidad",null,"Porcentaje",null,"Trimestre 2","Trimestre 1"]
["213.03.00.00.00","Caja Costarricense del Seguro Social",null,8.7499999999999994E-2,null,590475695.26999998,598213810.89999998]

{"sheet":"Nota 21","index":27,"n_rows":26,"n_cols":10,"rows_kept":26,"cut":false,"hidden":false,"merged":[[2,1,3,9],[4,1,4,9],[6,1,6,9]]}
[]
[null,"Nota 21:"]
[null,"PROVISIONES PARA PENSIONES EN CURSO DE PAGO"]
[]
[null,{"$f":"+'Nota 20'!B6:F6","v":"Al 30 de Junio de 2020"}]
[]
[null,"En esta cuenta se registra la totalidad de los recursos acumulados  generados de las actividades del Fondo de Jubilaciones y Pensiones provenientes en su mayoría de los aportes recibidos de las cuotas obrero patronales-estatales, así como de los intereses netos ganados en inversiones, con el fin de atender las obligaciones que se deriven de los beneficios establecidos reglamentariamente para los jubilados y pensionados actuales así como de los nuevos jubilados y pensionados. "]
[]
["Trimestre 2"]
["Cuenta Contable","Nota",null,"Sub-nota",null,"APORTES POR COBRAR",null,"Detalle",null,"Total"]
[]
["214.01.01.00.00","22.1",null,null,null,"Recursos recibido de reservas en formación",null,null,null,1242267933828.0601]
["214.01.02.00.00","22.2",null,null,null,"(Menos) Pago plan de beneficios",null,null,null,643775291869.58008]
["214.01.02.00.00.1.02.01",null,null,"22.2.1",null,"Traslados a otros regímenes",null,1085542002.3399999]
[]
[{"$nulls":5},"TOTAL ",null,null,null,{"$f":"+J12-J13","v":598492641958.47998}]
[]
[]
["Trimestre 1"]
["Cuenta Contable","Nota",null,"Sub-nota",null,"APORTES POR COBRAR",null,"Detalle",null,"Total"]
[]
["214.01.01.00.00","22.1",null,null,null,"Recursos recibido de reservas en formación",null,null,null,1209888033918.24]
["214.01.02.00.00","22.2",null,null,null,"(Menos) Pago plan de beneficios",null,null,null,623406509232.27014]
["214.01.02.00.00.1.02.01",null,null,"22.2.1",null,"Traslados a otros regímenes",null,1065736736.9299999]
[]
[{"$nulls":5},"TOTAL ",null,null,null,{"$f":"+J22-J23","v":586481524685.96985}]

{"sheet":"Nota 22","index":28,"n_rows":12,"n_cols":4,"rows_kept":12,"cut":false,"hidden":false,"merged":[[3,1,4,3],[5,1,5,3],[8,1,8,3]]}
[]
[null,"Nota 22:"]
[]
[null,"CUENTAS DE ORDEN DEUDORAS Y ACREDORAS"]
[]
[null,{"$f":"+'Nota 21'!B5:J5","v":"Al 30 de Junio de 2020"}]
[]
[]
[null,"En esta cuenta se registran los saldos de las cuentas por cobrar por concepto de reconocimiento de tiempo servido en otras dependencias o instituciones públicas, de aquellos servidores en condición de propietarios que renunciaron al Poder Judicial. "]
[]
[null,"Concepto",null,"Monto"]
[null,"Cuentas por cobrar por reconocimiento de tiempo servido en otras dependencias o instituciones públicas, de aquellos servidores en condición de propietarios que renunciaron al Poder Judicial. ",null,331222636]

{"sheet":"Nota 23","index":29,"n_rows":23,"n_cols":4,"rows_kept":23,"cut":false,"hidden":false,"merged":[[22,1,22,2],[3,1,4,6],[5,1,5,6],[8,1,8,6],[15,1,15,2]]}
[]
[null,"Nota 23:"]
[]
[null,"Rendimientos Acumulados"]
[]
[null,{"$f":"+'Nota 21'!B5:J5","v":"Al 30 de Junio de 2020"}]
[]
[]
[null,"En esta cuenta se registran el traslado de los rendimientos del mes anterior antes del cierre del mes actual."]
[]
[null,"Trimestre 2"]
[null,"Cuenta Contable","Rendimientos Acumulados","TOTAL"]
[]
[null,"313.01.00.00.00     ","Rendimientos devengados",10072603464.24]
[null,"313.02.00.00.00     ","(Traslado de recursos a la provisión para pensiones",-10072603464.24]
[null,"Total de Rendimientos Acumulados",null,{"$f":"SUM(D14:D15)","v":0}]
[]
[null,"Trimestre 1"]
[null,"Cuenta Contable","Rendimientos Acumulados","TOTAL"]
[]
[null,"313.01.00.00.00     ","Rendimientos devengados",10239466859.889999]
[null,"313.02.00.00.00     ","(Traslado de recursos a la provisión para pensiones",-10239466859.889999]
[null,"Total de Rendimientos Acumulados",null,{"$f":"SUM(D21:D22)","v":0}]

{"sheet":"Nota 24","index":30,"n_rows":21,"n_cols":5,"rows_kept":21,"cut":false,"hidden":false,"merged":[[20,1,20,3],[3,1,4,3],[5,1,5,3],[8,1,8,3],[18,1,18,2],[12,1,12,2],[16,1,16,2]]}
[]
[null,"Nota 24:"]
[]
[null,"Resultado del periodo"]
[]
[null,{"$f":"+'Nota 21'!B5:J5","v":"Al 30 de Junio de 2020"}]
[]
[]
[null,"En esta cuenta se registran el resultado del periodo."]
[]
[null,"Cuenta Contable","Ingresos","Trimestre 2","Trimestre 1"]
[null,"500.00.00.00.00     ","Ingresos",17015480193.360001,18352675706.650002]
[null,"Total de Ingresos",null,{"$f":"SUM(D12:D12)","v":17015480193.360001},{"$f":"SUM(E12)","v":18352675706.650002}]
[]
[null,"Cuenta Contable","Gastos","Trimestre 2"]
[null,"400.00.00.00.00     ","Gastos",7635466922.9899998,8050890171.25]
[null,"Total de Gastos",null,{"$f":"SUM(D16:D16)","v":7635466922.9899998},{"$f":"SUM(E16)","v":8050890171.25}]
[]
[null,"Total Utilidad",null,{"$f":"+D13-D17","v":9380013270.3700008},{"$f":"+E13-E17","v":10301785535.400002}]
[]
[null,"Este monto se traslada con el cierre de periodo a la cuenta de rendimientos acumulados y posteriormente el mes siguientes se traslada a la cuenta de la Provisión."]

{"sheet":"Nota 25","index":31,"n_rows":14,"n_cols":5,"rows_kept":14,"cut":false,"hidden":false,"merged":[[13,1,13,2],[8,5,8,6],[2,1,2,4],[3,1,4,3],[5,1,5,3],[8,1,8,3]]}
[]
[null,"Nota 25:"]
[null,"Flujos de efectivo por actividades de operación"]
[null,"Ganancias o pérdidas por diferencias de cambio y unidades de desarrollo"]
[]
[null,{"$f":"+'Nota 21'!B5:J5","v":"Al 30 de Junio de 2020"}]
[]
[]
[null,"Corresponde a la variación de la cuentas de ingresos y gastos de las ganancias o pérdidas por diferencial cambiario y unidades de desarrollo."]
[]
[null,"Cuenta Contable","Ingresos","Trimestre 2","Trimestre 1"]
[null,"510.04.10.00.00     ","Ganancia por diferencial cambiario y unidades de desarrollo",5940954254.7600002,7088775648.8800001]
[null,"410.04.10.00.00     ","Pérdida por diferencial cambiario y unidades de desarrollo",5732328145.0900002,5949779621.25]
[null,"Total ",null,{"$f":"+D12-D13","v":208626109.67000008},{"$f":"+E12-E13","v":1138996027.6300001}]

{"sheet":"Nota 26","index":32,"n_rows":21,"n_cols":6,"rows_kept":21,"cut":false,"hidden":false,"merged":[[3,1,4,4],[5,1,5,4],[8,1,8,4],[2,1,2,4]]}
[]
[null,"Nota 26:"]
[null,"Flujos de efectivo por actividades de operación"]
[null,"Deterioro de activos financieros"]
[]
[null,{"$f":"+'Nota 7'!B5:E5","v":"al 30 de Junio de 2020"}]
[]
[]
[null,"Comprende los movimientos de la estimación de deterioro en activos sobre los instrumentos financieros, de cuentas, productos, dividendos y aportes por cobrar."]
[]
[]
["Cuenta Contable","Cuenta",null,"Moneda","Trimestre 2","Trimestre 1"]
["411.01.01.00.00.1.00.01","Al valor razonable con cambios en otro resultado integral ",null,"Colones",62535846.890000001,162762738.59999999]
["411.01.01.00.00.2.00.01","Al valor razonable con cambios en otro resultado integral ",null,"Dólares",-95739864.269999996,132498558.86]
[null,"Total",null,null,{"$f":"SUM(E13:E14)","v":-33204017.379999995},17779780.520000003]
[]
["Cuenta Contable","Cuenta",null,"Moneda","Trimestre 2","Trimestre 1"]
["411.01.02.00.00.1.00.01","Al costo amortizado ¢",null,"Colones",75277044.810000002,0]
["411.01.02.00.00.2.00.01","Al costo amortizado $",null,"Dólares",20646082.18,0]
["411.01.02.00.00.4.00.01","Al costo amortizado  (UD)",null,"UDES",52885403.460000001,0]
[null,"Total",null,null,{"$f":"SUM(E18:E20)","v":148808530.45000002}]

{"sheet":"Nota 27","index":33,"n_rows":21,"n_cols":3,"rows_kept":21,"cut":false,"hidden":false,"merged":[[3,1,6,4],[7,1,7,4],[10,1,10,4],[2,1,2,4],[13,1,13,2]]}
[]
[null,"Nota 27:"]
[null,"Flujos de efectivo por actividades de operación"]
[null,"Instrumentos financieros - Al valor Razonable con cambios en el otro resultado integral"]
[]
[]
[]
[null,{"$f":"+'Nota 7'!B5:E5","v":"al 30 de Junio de 2020"}]
[]
[]
[null,"Comprende los movimientos efectivos correspondientes a las Inversiones al Al valor razonable con cambios en otro resultado integral "]
[]
[]
[null,"Instrumentos financieros - Al valor Razonable con cambios en el otro resultado integral"]
[null,"Instrumentos financieros - Al valor Razonable con cambios en el otro resultado integral",8783343395.2199993]
[null,"Mas"]
[null,"Gasto por deterioro",115604513.06999999]
[null,"Ajustes al Patrimonio (valuación y deterioro)",12672513307.360001]
[null,"Menos"]
[null,"Diferencial cambiario ",-208626109.66999999]
[null,"Total",{"$f":"SUM(C15:C20)","v":21362835105.980003}]

{"sheet":"Nota 28","index":34,"n_rows":21,"n_cols":5,"rows_kept":21,"cut":false,"hidden":false,"merged":[[2,1,2,4],[3,1,6,4],[7,1,7,4],[10,1,10,4]]}
[]
[null,"Nota 28:"]
[null,"Flujos de efectivo por actividades de operación"]
[null,"Instrumentos financieros - Al costo amortizado"]
[]
[]
[]
[null,{"$f":"+'Nota 7'!B5:E5","v":"al 30 de Junio de 2020"}]
[]
[]
[null,"Comprende los movimientos efectivos correspondientes a las Inversiones al Instrumentos financieros - Al costo amortizado"]
[]
[]
["Cuenta Contable","Al costo amortizado","Trimestre 2","Trimestre 1","Variación (Flujo)"]
["120.03.00.00.00"]
[null,"Valor de Adquisición",203046083974.52002,219395977243.39999,{"$f":"+C16-D16","v":-16349893268.879974}]
[null,"(Amortización de principal)",0,0,{"$f":"+C17-D17","v":0}]
[null,"(Amortización de Primas) ",-4262793707.8299999,-4179331364.2199998,-83462343.610000134]
[null,"Amortización de Descuentos ",78635687.609999999,72702426.460000008,5933261.1499999911]
[null,"(Estimación por deterioro)",-148808530.45000002,0,-148808530.45000002]
[null,"Total",{"$f":"SUM(C16:C20)","v":198713117423.85001},{"$f":"SUM(D16:D20)","v":215289348305.63998},{"$f":"SUM(E16:E20)","v":-16576230881.789976}]

{"sheet":"Nota 29","index":35,"n_rows":26,"n_cols":4,"rows_kept":26,"cut":false,"hidden":false,"merged":[[11,1,11,2],[12,1,12,2],[2,1,2,2],[3,1,6,2],[7,1,7,2]]}
[]
[null,"Nota 29:"]
[null,"Flujos de efectivo por actividades de operación y de inversión"]
[null,"Productos y dividendos por cobrar"]
[]
[]
[]
[null,{"$f":"+'Nota 7'!B5:E5","v":"al 30 de Junio de 2020"}]
[]
[]
[null,"La cuenta se conforma por el registro de:"]
[null,"·         La parte proporcional de los intereses, rendimientos y dividendos por las inversiones, que fueron adquiridas por el Fondo."]
[null,"·        Además comprende los registros de aquellas inversiones que a su fecha de vencimiento deben ser reclasificados según lo requerido por el ente Rector a las cuentas de vencidos y restringidos."]
[]
[null,"Actividades de Operación"]
[null,"Aumentos","Trimestre 2","Trimestre 1"]
[null,"Al valor razonable con cambios en otros resultados integral",11268504732.559999,19413874807.125]
[null,"Al costo amortizado",2388033347.0900002,6338822094.6549997]
[]
[null,null,{"$f":"SUM(C17:C19)","v":13656538079.65},25752696901.779999]
[null,"Actividades de Inversión"]
[null,"Disminuciones","Total"]
[null,"Al valor razonable con cambios en otros resultados integral",7555615244.6500006,15221447609.200001]
[null,"Al costo amortizado",2225218772.79,4342836151.0200005]
[]
[null,null,{"$f":"+C23+C24","v":9780834017.4400005},19564283760.220001]

{"sheet":"Nota 30","index":36,"n_rows":16,"n_cols":5,"rows_kept":16,"cut":false,"hidden":false,"merged":[[10,1,10,3],[2,1,2,4],[3,1,6,4],[7,1,7,4]]}
[]
[null,"Nota 30:"]
[null,"Flujos de efectivo por actividades de operación"]
[null,"Cuentas por cobrar"]
[]
[]
[]
[null,{"$f":"+'Nota 7'!B5:E5","v":"al 30 de Junio de 2020"}]
[]
[]
[null,"Partidas que debe recuperar el Fondo y se conforma por los siguientes conceptos:"]
[]
[null,"Cuentas por Cobrar","Trimestre 2","Trimestre 1","Variación (Flujo)"]
[null,"Impuesto Sobre La Renta Por Cobrar ",{"$f":"+'Nota 14'!D10","v":760764302.22000003},{"$f":"+'Nota 14'!E10","v":1030539285.76},{"$f":"+C14-D14","v":-269774983.53999996}]
[null,"Sumas pendientes de cobrar otras",{"$f":"+'Nota 14'!D11","v":24222.16},{"$f":"+'Nota 14'!E11","v":441585.41},{"$f":"+C15-D15","v":-417363.25}]
[null,"Saldo:",{"$f":"SUM(C14:C15)","v":760788524.38},{"$f":"SUM(D14:D15)","v":1030980871.17},{"$f":"SUM(E14:E15)","v":-270192346.78999996}]

{"sheet":"Nota 31","index":37,"n_rows":32,"n_cols":7,"rows_kept":32,"cut":false,"hidden":false,"merged":[[12,6,13,6],[12,2,12,3],[12,4,12,5],[2,1,2,6],[3,1,6,6],[7,1,7,6],[11,1,11,6]]}
[]
[null,"Nota 31:"]
[null,"Flujos de efectivo por actividades de operación"]
[null,"Aportes por cobrar"]
[]
[]
[]
[null,{"$f":"+'Nota 7'!B5:E5","v":"al 30 de Junio de 2020"}]
[]
[]
[]
[null,"Corresponden a los aporte de los trabajadores, del patrono, del estado y jubilados-Pensionados que se detallan a continuación:"]
[null,null,"Trimestre  2",null,"Trimestre  1",null,"Variación (Flujo)"]
["Cuenta Contable","APORTES POR COBRAR","Detalle","Total","Detalle","Total"]
[]
["150.01.00.00.00     ","Aporte por cobrar a los trabajadores",null,{"$f":"SUM(C17:C19)","v":4950151623.8900003},null,{"$f":"SUM(E17:E19)","v":4210631531.7399998},{"$f":"+D16-F16","v":739520092.15000057}]
[null,"Aporte Ordinario",686175.92,null,145119.06]
[null,"Aporte Ordinario S .Escolar",1380822609.55,null,706171792.55999994]
[null,"Aporte Reconocimiento de tiempo servido",3568642838.4200001,null,3504314620.1199999]
["150.02.00.00.00     ","Aportes por cobrar al Patrono",null,{"$f":"SUM(C21:C22)","v":3137009929.0988002},null,{"$f":"SUM(E21:E22)","v":3920522876.0388002},{"$f":"+D20-F20","v":-783512946.94000006}]
[null,"Aportes Por Cobrar Poder Jud.-Patrono",1611447286.9848001,null,3151366540.3548002]
[null,"Apor. x Cobrar Poder Jud.-Patrono (S.E)",1525562642.1140001,null,769156335.68400002]
["150.03.00.00.00     ","Aportes por cobrar al Estado",null,{"$f":"SUM(C24:C25)","v":307553601.75999999},null,{"$f":"SUM(E24:E25)","v":228492269.04999998},{"$f":"+D23-F23","v":79061332.710000008}]
[null,"Aportes Por Cobrar Poder Jud.-Estado",158070005.21000001,null,153206549.63999999]
[null,"Apor. x Cobrar Poder Jud.-Estado (S.E)",149483596.55000001,null,75285719.409999996]
["150.04.00.00.00     ","Otros aportes por cobrar",null,{"$f":"SUM(C27:C30)","v":205282987.67000002},null,{"$f":"SUM(E27:E30)","v":207840434.57999998},{"$f":"+D26-F26","v":-2557446.9099999666}]
[null,"O. Aportes Por Cobrar Jubilados",177146685.49000001,null,181138463.94999999]
[null,"O. Aportes Por Cobrar Pensionados",26292658.420000002,null,24765070.329999998]
[null,"O. Aportes Por Cobrar E. Deductoras",1843643.76,null,1936900.3]
[]
[]
[null,"TOTAL ",null,{"$f":"SUM(D16:D30)","v":8599998142.4188004},null,{"$f":"SUM(F16:F30)","v":8567487111.4088001},{"$f":"SUM(G16:G30)","v":32511031.010000557}]

{"sheet":"Nota 32","index":38,"n_rows":19,"n_cols":5,"rows_kept":19,"cut":false,"hidden":false,"merged":[[10,1,10,3],[2,1,2,4],[3,1,6,4],[7,1,7,4]]}
[]
[null,"Nota 32:"]
[null,"Flujos de efectivo por actividades de operación"]
[null,"Cuentas por pagar"]
[]
[]
[]
[null,{"$f":"+'Nota 7'!B5:E5","v":"al 30 de Junio de 2020"}]
[]
[]
[null,"Partidas correspondientes a las cuentas por pagar por los siguientes conceptos:"]
[]
[null,"Cuentas por Cobrar","Trimestre 2","Trimestre 1","Variación (Flujo)"]
[]
[null,"Retenciones a Pensionados",{"$f":"+'Nota 17'!E48","v":1531784876.7000008},{"$f":"+'Nota 17'!G48","v":950322115.19000006},{"$f":"+C15-D15","v":581462761.51000071}]
[null,"Obligaciones por liquidar empleados y exempleados",{"$f":"+'Nota 18'!C14","v":3845542.57},{"$f":"+'Nota 18'!D14","v":3722763.78},{"$f":"+C16-D16","v":122778.79000000004}]
[null,"Obligaciones transitorias por liquidar",{"$f":"+'Nota 19'!D26","v":3870546518.8299999},{"$f":"+'Nota 19'!E26","v":3638959116.6700001},231587402.15999985]
[]
[null,"Saldo:",{"$f":"SUM(C15:C18)","v":5406176938.1000004},{"$f":"SUM(D15:D18)","v":4593003995.6400003},{"$f":"SUM(E15:E18)","v":813172942.46000051}]

{"sheet":"Nota 33","index":39,"n_rows":18,"n_cols":3,"rows_kept":18,"cut":false,"hidden":false,"merged":[[12,1,12,3],[9,1,9,3],[2,1,2,3],[3,1,6,3],[7,1,7,3]]}
[]
[null,"Nota 33:"]
[null,"Flujos de efectivo por actividades de operación"]
[null,"Provisión para pensiones en curso de pago"]
[]
[]
[]
[null,{"$f":"+'Nota 7'!B5:E5","v":"al 30 de Junio de 2020"}]
[]
[null,"Recursos acumulados  generados de las actividades del Fondo de Jubilaciones y Pensiones provenientes en su mayoría de los aportes recibidos de las cuotas obrero patronales-estatales, así como de los intereses netos ganados en inversiones, con el fin de atender las obligaciones que se deriven de los beneficios establecidos reglamentariamente para los jubilados y pensionados actuales así como de los nuevos jubilados y pensionados. "]
[]
[]
[null,"Provisión para pensiones en curso de pago"]
[]
[null,"Provisión para pensiones en curso de pago",12011117272.51]
[null,"Menos"]
[null,"Rendimientos acumulados",-10072603464.24]
[null,"Total",{"$f":"SUM(C15:C17)","v":1938513808.2700005}]

{"sheet":"Nota 34","index":40,"n_rows":15,"n_cols":5,"rows_kept":15,"cut":false,"hidden":false,"merged":[[2,1,2,4],[3,1,6,4],[7,1,7,4],[10,1,10,4]]}
[]
[null,"Nota 34:"]
[null,"Flujos de efectivo por actividades de operación"]
[null,"Otros Pasivos"]
[]
[]
[]
[null,{"$f":"+'Nota 7'!B5:E5","v":"al 30 de Junio de 2020"}]
[]
[]
[null,"Lo correspondiente a cuota patronal del 8.75% que el Fondo de Jubilaciones y Pensiones debe pagar mensualmente a la Caja Costarricense de Seguro Social (C.C.S.S.)."]
[]
[null,"Entidad","Trimestre 2","Trimestre 1","Variación (Flujo)"]
[null,"Caja Costarricense del Seguro Social",{"$f":"+'Nota 20'!F12","v":590475695.26999998},{"$f":"+'Nota 20'!G12","v":598213810.89999998},{"$f":"+C14-D14","v":-7738115.6299999952}]
[null,"Total",{"$f":"SUM(C14)","v":590475695.26999998},{"$f":"SUM(D14)","v":598213810.89999998},{"$f":"SUM(E14)","v":-7738115.6299999952}]

{"sheet":"Nota 35","index":41,"n_rows":15,"n_cols":5,"rows_kept":15,"cut":false,"hidden":false,"merged":[[2,1,2,3],[3,1,6,3],[7,1,7,3],[10,1,10,4]]}
[]
[null,"Nota 35:"]
[null,"Flujos de efectivo por actividades de inversión"]
[null,"Aportaciones recibidas - Reservas en formación"]
[]
[]
[]
[null,{"$f":"+'Nota 7'!B5:E5","v":"al 30 de Junio de 2020"}]
[]
[]
[null,"Este rubro corresponde a la Contribución Solidaria"]
[]
[null,"Entidad","Trimestre 2","Trimestre 1","Variación"]
[null,"Contribución Solidaria ",1980175693.3900001,1646634023.9100001,{"$f":"+C14-D14","v":333541669.48000002}]
[null,"Total",{"$f":"SUM(C14)","v":1980175693.3900001},{"$f":"SUM(D14)","v":1646634023.9100001},{"$f":"SUM(E14)","v":333541669.48000002}]

{"sheet":"Nota 36","index":42,"n_rows":15,"n_cols":5,"rows_kept":15,"cut":false,"hidden":false,"merged":[[2,1,2,3],[3,1,6,3],[7,1,7,3],[10,1,10,3]]}
[]
[null,"Nota 36:"]
[null,"Estado de Cambios en el Patrimonio Neto"]
[null,"Ajuste por valuación de instrumentos financieros al valor razonable con cambios en el ORI"]
[]
[]
[]
[null,{"$f":"+'Nota 7'!B5:E5","v":"al 30 de Junio de 2020"}]
[]
[]
[null,"Corresponde a la Valuación de precios de mercado correspondiente a las inversiones del valor razonzable con cambios en el ORI"]
[]
[null,"Entidad","Trimestre 2","Trimestre 1","Variación"]
[null,"Valuación de instrumentos financieros ",8006590996.5799999,20679104303.939999,{"$f":"+C14-D14","v":-12672513307.359999}]
[null,"Total",{"$f":"SUM(C14)","v":8006590996.5799999},{"$f":"SUM(D14)","v":20679104303.939999},{"$f":"SUM(E14)","v":-12672513307.359999}]